{"text_format":"1","workbook":"xlsx","n_sheets":22,"sheets":["PORTADA","MENU","ACTIVIDADES","FSBC","SBCP","GUIA","DCUOTAS","INFONAVIT","COSTOU","CFDIE","RPAGOSE","CFDIR","RPAGOSR","NOMINA","PP PFAEP","PP PLATA","IVA","IVAP","GENERALES1","FUNDAMENTO","GENERAL","TARIFA"],"not_rendered":{"charts":0,"images":33,"macros":1,"external_links":0,"defined_names":55,"comments":2,"pivot_tables":0},"unopened":[],"bounds":{"document_bytes":16777216,"sheet_cells":100000,"rows_first":2000,"rows_last":500,"rows_between":2000,"halvings":0,"cell_chars":16384,"cell_head_chars":4096},"cells_cut":0,"cells_raw":0,"read":"whole","date_system":"1900"}

{"sheet":"PORTADA","index":0,"n_rows":325,"n_cols":18,"rows_kept":325,"cut":false,"hidden":false,"merged":[[1,1,10,9],[11,1,11,9],[12,1,26,9]]}
[]
[null,14896532]
[]
[]
[]
[]
[]
[]
[]
[]
[]
[null,"www.acfmsc.com"]
[null,14896532]
[]
[]
[]
[]
[]
[]
[]
[]
[]
[]
[]
[]
[]
[]
[]
[]
[]
[]
[]
[]
[]
[]
[]
[]
[]
[]
[]
[]
[]
[]
[]
[]
[]
[]
[]
[]
[]
[]
[]
[]
[]
[]
[]
[]
[]
[]
[]
[]
[]
[]
[]
[]
[]
[]
[]
[]
[]
[]
[]
[]
[]
[]
[]
[]
[]
[]
[]
[]
[]
[]
[]
[]
[]
[]
[null,null,null,null,null,null,null,null,null,null,null,null,null,null,null,null,null,"LEN2285"]
[]
[]
[]
[]
[null,null,null,null,null,null,null,null,null,null,null,null,null,null,null,null,null,"LEN2285"]
[]
[]
[]
[]
[]
[]
[]
[]
[]
[]
[]
[]
[]
[]
[]
[]
[]
[]
[]
[]
[]
[]
[]
[]
[]
[]
[]
[]
[]
[]
[]
[]
[]
[]
[]
[]
[]
[]
[]
[]
[]
[]
[]
[]
[]
[]
[]
[]
[]
[]
[]
[]
[]
[]
[]
[]
[]
[]
[]
[]
[]
[]
[]
[]
[]
[]
[]
[]
[]
[]
[]
[]
[]
[]
[]
[]
[]
[]
[]
[]
[]
[]
[]
[]
[]
[]
[]
[]
[]
[]
[]
[]
[]
[]
[]
[]
[]
[]
[]
[]
[]
[]
[]
[]
[]
[]
[]
[]
[]
[]
[]
[]
[]
[]
[]
[]
[]
[]
[]
[]
[]
[]
[]
[]
[]
[]
[]
[]
[]
[]
[]
[]
[]
[]
[]
[]
[]
[]
[]
[]
[]
[]
[]
[]
[]
[]
[]
[]
[]
[]
[]
[]
[]
[]
[]
[]
[]
[]
[]
[]
[]
[]
[]
[]
[]
[]
[]
[]
[]
[]
[]
[]
[]
[]
[]
[]
[]
[]
[]
[]
[]
[]
[]
[]
[]
[]
[]
[]
[]
[]
[]
[]
[]
[]
[]
[]
[]
[]
[]
[]
[]
[]
[]
[]
[]
[]
[]
[]
[]
[]
[]
[]
[]
[]
[]
[]
[]
[]
[]
[]
[]
[]
[]
[]
[]
[]
[]
[]
[]
[]
[]
[null,null,null,null,null,null,null,null,null,null,null,null,null,null,null,67010623]

{"sheet":"MENU","index":1,"n_rows":22,"n_cols":3,"rows_kept":22,"cut":false,"hidden":false,"merged":[]}
[]
[]
[]
[]
[null,"Descripción","Nombre de la hoja"]
[null,"Actividades plataformas tecnológicas","ACTIVIDADES"]
[null,"Determinación del salario base de cotización","FSBC"]
[null,"Determinación del SBC trabajadores de plataformas","SBCP"]
[null,"Guía de movimientos afiliatorios al IMSS","GUIA"]
[null,"Determinación de la cuota obrero-patronales","DCUOTAS"]
[null,"Fundamentos descuentos INFONAVIT","INFONAVIT"]
[null,"Costos unitarios atención trabajadores independientes","COSTOU"]
[null,"Importar archivos XML emitidos","CFDIE"]
[null,"Importar XML con complemento de pago emitidos","RPAGOSE"]
[null,"Importar archivos XML recibidos","CFDIR"]
[null,"Importar XML con complemento de pago recibidos","RPAGOSR"]
[null,"Importar XML de nómina","NOMINA"]
[null,"Determinación del pago provisional actividad emrpesarial","PP PFAEP"]
[null,"Formato pago provisional plataformas tecnológicas","PP PLATA"]
[null,"Formato IVA actividad empresarial","IVA"]
[null,"Formato IVA plataformas tecnológicas","IVAP"]
[null,"Fundamentos legales","FUNDAMENTO"]

{"sheet":"ACTIVIDADES","index":2,"n_rows":72,"n_cols":10,"rows_kept":72,"cut":false,"hidden":false,"merged":[[66,4,66,6],[67,4,67,6],[34,1,34,2],[46,1,46,2],[49,1,49,3],[58,4,58,6],[59,4,59,6],[60,4,60,6],[61,4,61,6],[62,4,62,6],[29,1,29,2],[22,1,22,2],[24,1,24,2],[26,1,26,2],[27,1,27,2],[28,1,28,2]]}
[]
[null,null,"Ir al MENÚ"]
[]
[null,"Tranasporte terrestre de personas y entrega de bienes"]
[]
[null,null,"Ingreso anual"]
[null,"Tranasporte terrestre de personas y entrega de bienes a traves de intermediarios"]
[null,"Tranasporte terrestre de personas y entrega de bienes cobro directo"]
[null,"(=) Total",{"$f":"SUM(C7:C8)","v":0}]
[null,"(x) Tasa de ISR",2.1000000000000001E-2]
[null,"(=) ISR causado anual",{"$f":"IFERROR(ROUND(C9*C10,0),0)","v":0}]
[]
[null,"Retención no definitiva"]
[null,null,"Ingreso anual"]
[null,"Tranasporte terrestre de personas y entrega de bienes a traves de intermediarios"]
[null,"Tranasporte terrestre de personas y entrega de bienes cobro directo"]
[null,"(=) Total",{"$f":"SUM(C15:C16)","v":0}]
[null,"(-) Deducciones autorizadas"]
[null,"(=) Base para ISR",{"$f":"C17-C18","v":0}]
[null,"ISR causado",{"$f":"IFERROR(ROUND(((C19-VLOOKUP(C19,TANUAL,1))*VLOOKUP(C19,TANUAL,4)%)+VLOOKUP(C19,TANUAL,3),0),0)","v":0}]
[]
[]
[null,"Fecha de cálculo"]
[null,"Salario mínimo mensual de la Ciudad de México",null,{"$f":"278.8*30","v":8364}]
[null,"Pago a la persona trabajadores por mes"]
[null,"Salario mínimo diario de la Ciudad de México",null,278.8]
[null,"Tipo de transporte"]
[null,"Vehículos motorizados de cuatro o más ruedas de combustión interna, eléctricos o análogos.",null,{"$f":"IFERROR(VLOOKUP(B28,GENERALES1!$H$6:$J$8,IF(AND(MONTH(D23)>=7,MONTH(D23)<=9),3,2),FALSE),\"\")","v":0.36}]
[null,"Cuarta. Exclusión de la herramienta de trabajo.\nPara calcular el Ingreso Neto Mensual de las personas trabajadoras en plataformas digitales, se tomará el Ingreso Bruto Mensual al que se aplicará la exclusión de un porcentaje diferenciado derivado del uso intensivo y continuo de la plataforma digital como herramienta de trabajo tecnológica proporcionada por el patrón, bajo los parámetros establecidos en la siguiente Disposición.\nFundamento: Reglas de caracter general LFT (27/06/2025)",null,{"$f":"IFERROR(ROUND(D25*D28,2),\"\")","v":0}]
[null,"(=) Salario neto mensual",null,{"$f":"IFERROR(ROUND(D25-D29,2),\"\")","v":0},{"$f":"IF(D30>=D24,\"Persona trabajadora de plataformas digitales\",IF(D30<D24,\"Trabajador independiente\",\"\"))","v":"Trabajador independiente"}]
[]
[null,"Determinación del Salario base de cotización"]
[null,"Ingreso neto mensual",null,{"$f":"IFERROR(IF(D30>=D24,D30,\"\"),\"\")","v":""}]
[null,"(/) Días del mes",null,{"$f":"IFERROR(DAY(EOMONTH(D23,0)),\"\")","v":31}]
[null,"(=) Salario base de cotización",null,{"$f":"IFERROR(ROUND(D33/D34,2),\"\")","v":""}]
[]
[null,"Determinación de las retenciones del IMSS"]
[null,"Mes de la UMA","Febrero en adelante"]
[null,"Valor de la UMA",{"$f":"IFERROR(VLOOKUP(C38,GENERALES1!$B$25:$C$26,2,FALSE),\"\")","v":113.14}]
[null,"Días del periodo a calcular",31]
[]
[null,"Seguro y concepto","Prestaciones","Salario Base de Cotización","(-) 3 umas","(=) Excedente 3 umas","(x) Cuota obrera","(=) Cuota diaria","(x) días del periodo","(=) Cuota obrera "]
[null,"Enfermedades y Maternidad","En especie",{"$f":"IFERROR(IF($D$35<=$D$26,$D$26,$D$35),\"\")","v":""},{"$f":"IFERROR(C39*3,0)","v":339.42},{"$f":"IFERROR(IF(D43>=E43,D43-E43,0),0)","v":0},4.0000000000000001E-3,{"$f":"IFERROR(ROUND(F43*G43,2),0)","v":0},{"$f":"IFERROR($C$40,\"\")","v":31},{"$f":"IFERROR(ROUND(H43*I43,2),0)","v":0}]
[null,"Enfermedades y Maternidad","En dinero",{"$f":"IFERROR(IF($D$35<=$D$26,$D$26,$D$35),\"\")","v":""},null,null,2.5000000000000001E-3,{"$f":"IFERROR(ROUND(D44*G44,2),0)","v":0},{"$f":"IFERROR($C$40,\"\")","v":31},{"$f":"IFERROR(ROUND(H44*I44,2),0)","v":0}]
[null,"Enfermedades y Maternidad","Gastos médicos para pensionados y beneficiarios","",null,null,3.7499999999999999E-3,{"$f":"IFERROR(ROUND(D45*G45,2),0)","v":0},31,0]
[null,"Invalidez y Vida ","En especie y dinero ","",null,null,6.3E-3,0,31,0]
[null,"Cesantía en Edad Avanzada y Vejez (CEAV) ",null,"",null,null,1.125E-2,0,31,0]
[null,null,null,null,null,null,null,null,"Total",{"$f":"SUM(J43:J47)","v":0}]
[]
[null,"Artículo 36 LSS. Corresponde al patrón pagar íntegramente la cuota señalada para los trabajadores, en los casos en que éstos perciban como cuota diaria el salario mínimo."]
[]
[null,{"$f":"IF(E30=\"Persona trabajadora de plataformas digitales\",\"Retención por un periodo de \" & C40,\"\")","v":""},{"$f":"IFERROR(IF(B52<>\"\",J48,\"\"),\"\")","v":""}]
[]
[]
[]
[null,"Servicio de hospedaje",null,null,"Enajenación de bienes y prestación de servicios"]
[]
[null,null,"Ingreso anual",null,null,null,null,"Ingreso anual"]
[null,"Servicio de hospedaje a traves de intermediarios",null,null,"Enajenación de bienes y prestación de servicios a treves de intermediarios"]
[null,"Servicio de hospedaje cobro directo",null,null,"Enajenación de bienes y prestación de servicios cobro directo."]
[null,"(=) Total",{"$f":"SUM(C59:C60)","v":0},null,"(=) Total",null,null,{"$f":"SUM(H59:H60)","v":0}]
[null,"(x) Tasa de ISR",0.04,null,"(x) Tasa de ISR",null,null,0.01]
[null,"(=) ISR causado anual",{"$f":"IFERROR(ROUND(C61*C62,0),0)","v":0},null,"(=) ISR causado anual",null,null,{"$f":"IFERROR(ROUND(H61*H62,0),0)","v":0}]
[]
[null,"Retención no definitiva",null,null,"Retención no definitiva"]
[null,null,"Ingreso anual",null,null,null,null,"Ingreso anual"]
[null,"Tranasporte terrestre de personas y entrega de bienes a traves de intermediarios",null,null,"Tranasporte terrestre de personas y entrega de bienes a traves de intermediarios"]
[null,"Tranasporte terrestre de personas y entrega de bienes cobro directo",null,null,"Tranasporte terrestre de personas y entrega de bienes cobro directo"]
[null,"(=) Total",{"$f":"SUM(C67:C68)","v":0},null,"(=) Total",null,null,{"$f":"SUM(H67:H68)","v":0}]
[null,"(-) Deducciones autorizadas",null,null,"(-) Deducciones autorizadas"]
[null,"(=) Base para ISR",{"$f":"C69-C70","v":0},null,"(=) Base para ISR",null,null,{"$f":"H69-H70","v":0}]
[null,"ISR causado",{"$f":"IFERROR(ROUND(((C71-VLOOKUP(C71,TANUAL,1))*VLOOKUP(C71,TANUAL,4)%)+VLOOKUP(C71,TANUAL,3),0),0)","v":0},null,"ISR causado",null,null,{"$f":"IFERROR(ROUND(((H71-VLOOKUP(H71,TANUAL,1))*VLOOKUP(H71,TANUAL,4)%)+VLOOKUP(H71,TANUAL,3),0),0)","v":0}]

{"sheet":"FSBC","index":3,"n_rows":93,"n_cols":9,"rows_kept":93,"cut":false,"hidden":false,"merged":[[26,1,26,4],[86,1,86,3],[27,1,27,4],[28,1,28,4],[29,1,29,4],[30,1,30,5],[21,1,21,4],[22,1,22,4],[1,1,1,2],[13,1,13,4],[14,1,14,4],[15,1,15,4],[16,1,16,4],[20,1,20,4],[8,1,8,5],[9,1,9,4],[10,1,10,4],[11,1,11,4],[12,1,12,4],[4,1,4,5]]}
[]
[null,"Solo capture información en las celdas de color verde"]
[]
[null,"Ir al MENÚ"]
[null,"4. DE LA AFILIACIÓN DE LAS PERSONAS TRABAJADORAS DE PLATAFORMAS DIGITALES ANTE EL IMSS.\n4.1 Los patrones de las personas trabajadoras de plataformas digitales podrán optar por cumplir las obligaciones en materia de seguridad social conforme al Régimen Obligatorio de la LSS al que se refiere la fracción I del artículo 12 de la misma, o bien en los términos de las presentes Reglas, en cuyo caso tendrán las siguientes obligaciones en materia de seguridad social:"]
[]
[null,null,null,null,"Valor de la UMA",113.14]
[null,null,null,null,"Salario diario del trabajador"]
[null,"Artículo 27 LSS. El salario base de cotización se integra con los pagos hechos en efectivo por cuota diaria, gratificaciones, percepciones, alimentación, habitación, primas, comisiones, prestaciones en especie y cualquiera otra cantidad o prestación que se entregue al trabajador por su trabajo. Se excluyen como integrantes del salario base de cotización, dada su naturaleza, los siguientes conceptos:"]
[null,"I.  Los instrumentos de trabajo tales como herramientas, ropa y otros similares",null,null,null,"https://dof.gob.mx/nota_detalle.php?codigo=5721189&fecha=22/03/2024#gsc.tab=0"]
[null,"II. El ahorro, cuando se integre por un depósito de cantidad semanaria, quincenal o mensual igual del trabajador y de la empresa; si se constituye en forma diversa o puede el trabajador retirarlo más de dos veces al año, integrará salario; tampoco se tomarán en cuenta las cantidades otorgadas por el patrón para fines sociales de carácter sindical."]
[null,"Artículo 93 LISR. No se pagará el impuesto sobre la renta por la obtención de los siguientes ingresos:\nXI. Los provenientes de cajas de ahorro de trabajadores y de fondos de ahorro establecidos por las empresas para sus trabajadores cuando reúnan los requisitos de deducibilidad del Título II de esta Ley o, en su caso, del presente Título.\n\nRequisitos.\nQue sean otorgados en forma general a todos los trabajadores\nEl monto del patrón tiene que ser igual a la aportación de los trabajadores\nNo exceder del 13% del salario del trabajador\nCon un límite del 1.3 veces del valor de la UMA elevada al año\nFundamento: Artículo 27 fracción XI LISR"]
[null,"III. Las aportaciones adicionales que el patrón convenga otorgar a favor de sus trabajadores por concepto de cuotas del seguro de retiro, cesantía en edad avanzada y vejez."]
[null,"IV. Las cuotas que en términos de esta Ley le corresponde cubrir al patrón, las aportaciones al Instituto del Fondo Nacional de la Vivienda para los Trabajadores, y las participaciones en las utilidades de la empresa;",null,null,null,"https://dof.gob.mx/nota_detalle.php?codigo=5694775&fecha=07/07/2023#gsc.tab=0"]
[null,"Artículo 36 LSS. Corresponde al patrón pagar íntegramente la cuota señalada para los trabajadores, en los casos en que éstos perciban como cuota diaria el salario mínimo."]
[null,"Artículo 29 LINFONAVIT.- Son obligaciones de los patrones: \nII.- Determinar el monto de las aportaciones del cinco por ciento sobre el salario de los trabajadores a su servicio y efectuar el pago en las entidades receptoras que actúen por cuenta y orden del \nInstituto, para su abono en la subcuenta de vivienda de las cuentas individuales de los trabajadores previstas en los sistemas de ahorro para el retiro, en los términos de la presente \nLey y sus reglamentos, así como en lo conducente, conforme a lo previsto en la Ley del Seguro Social y en la Ley Federal del Trabajo. En lo que corresponde a la integración y cálculo de la \nbase y límite superior salarial para el pago de aportaciones, se aplicará lo contenido en la Ley del Seguro Social. \n\nEstas aportaciones son gastos de previsión de las empresas y forman parte del patrimonio de los trabajadores.\n......................................"]
[null,"V. La alimentación y la habitación cuando se entreguen en forma onerosa a los trabajadores; se entiende que son onerosas estas prestaciones cuando el trabajador pague por cada una de ellas, como mínimo, el veinte por ciento del salario mínimo general diario que rija en el Distrito Federal",null,null,null,{"$f":"IF(F7<>\"\",\"Se debe de cobrar por lo menos $\"&ROUND(F7*0.2,2),\"\")","v":"Se debe de cobrar por lo menos $22.63"},"https://dof.gob.mx/nota_detalle.php?codigo=5733018&fecha=11/07/2024#gsc.tab=0"]
[null,null,null,null,"¿Cuántos alimentos se le dan al trabajador?",3]
[null,null,null,null,{"$f":"IF(F18<>\"\",\"¿Cuanto paga el trabajador por el alimento?\",\"\")","v":"¿Cuanto paga el trabajador por el alimento?"},22.63]
[null,null,null,null,{"$f":"IF(AND(F18<>\"\",F19<>\"\"),IF(AND(F18=1,F19<ROUND(F7*0.2,2)),\"Se integra al salario el 8.33% del salario ordinario\",IF(AND(F18=2,F19<ROUND(F7*0.2,2)),\"Se integra al salario el 16.66% del salario ordinario\",IF(AND(F18=3,F19<ROUND(F7*0.2,2)),\"Se integra al salario el 25% del salario ordinario\",\"\"))),\"\")","v":""},{"$f":"IF(AND(F18<>\"\",F19<>\"\"),IF(AND(F18=1,F19<ROUND(F7*0.2,2)),ROUND(F8*8.33%,2),IF(AND(F18=2,F19<ROUND(F7*0.2,2)),ROUND(F8*16.66%,2),IF(AND(F18=3,F19<ROUND(F7*0.2,2)),ROUND(F8*25%,2),\"\"))),\"\")","v":""}]
[null,"Artículo 32 LSS. Si además del salario en dinero el trabajador recibe del patrón, sin costo para aquél, habitación o alimentación, se estimará aumentado su salario en un veinticinco por ciento y si recibe ambas prestaciones se aumentará en un cincuenta por ciento.\n\nCuando la alimentación no cubra los tres alimentos, sino uno o dos de éstos, por cada uno de ellos se adicionará el salario en un ocho punto treinta y tres por ciento."]
[null,"Artículo 344 LFT.- Las disposiciones de este capítulo se aplican a los trabajadores en hoteles, casas de asistencia, restaurantes, fondas, cafés, bares y otros establecimientos análogos.\n\nArtículo 348 LFT.- La alimentación que se proporcione a los trabajadores deberá ser sana, abundante y nutritiva."]
[null,"VI. Las despensas en especie o en dinero, siempre y cuando su importe no rebase el cuarenta por ciento del salario mínimo general diario vigente en el Distrito Federal",null,null,null,{"$f":"IF(F7<>\"\",\"El importe máximo es de $\"&ROUND(F7*0.4,2),\"\")","v":"El importe máximo es de $45.26"}]
[null,null,null,null,"¿Importe diario que se le entrega al trabajador?",50]
[null,null,null,null,{"$f":"IF(F24<>\"\",\"Parte que integra\",\"\")","v":"Parte que integra"},{"$f":"IFERROR(IF(F24<>\"\",IF(AND(F24<>\"\",F24>ROUND(F7*0.4,2)),F24-ROUND(F7*0.4,2),0),\"\"),\"\")","v":4.740000000000002}]
[null,null,null,null,{"$f":"IF(F24<>\"\",\"Parte que no integra\",\"\")","v":"Parte que no integra"},{"$f":"IFERROR(IF(F24<>\"\",IF(F24>=ROUND(F7*0.4,2),ROUND(F7*0.4,2),F24),\"\"),\"\")","v":45.26}]
[null,"VII. Los premios por asistencia y puntualidad, siempre que el importe de cada uno de estos conceptos no rebase el diez por ciento del salario base de cotización",null,null,null,"https://dof.gob.mx/nota_detalle.php?codigo=5744811&fecha=10/12/2024#gsc.tab=0"]
[null,"VIII. Las cantidades aportadas para fines sociales, considerándose como tales las entregadas para constituir fondos de algún plan de pensiones establecido por el patrón o derivado de contratación colectiva. Los planes de pensiones serán sólo los que reúnan los requisitos que establezca la Comisión Nacional del Sistema de Ahorro para el Retiro, y",null,null,null,"https://dof.gob.mx/nota_detalle.php?codigo=5691515&fecha=08/06/2023#gsc.tab=0"]
[null,"IX. El tiempo extraordinario dentro de los márgenes señalados en la Ley Federal del Trabajo."]
[null,"Artículo 66 LFT.- Podrá también prolongarse la jornada de trabajo por circunstancias extraordinarias, sin exceder nunca de tres horas diarias ni de tres veces en una semana."]
[null,"Para que los conceptos mencionados en este precepto se excluyan como integrantes del salario base de cotización, deberán estar debidamente registrados en la contabilidad del patrón.\n\nEn los conceptos previstos en las fracciones VI, VII y IX cuando el importe de estas prestaciones rebase el porcentaje establecido, solamente se integrarán los excedentes al salario base de cotización."]
[]
[null,"Determinación del salario base de cotización"]
[]
[null,"Fecha inicial de cálculo","2025-01-01"]
[null,"Fecha final de cálculo","2025-02-25"]
[null,"Salario diario del trabajador",500]
[null,"Zona del salario mínimo","Zona del Salario Mínimo General"]
[null,"Salario mínimo",{"$f":"IFERROR(VLOOKUP(C38,GENERALES1!B21:C22,2,FALSE),\"\")","v":278.8}]
[null,"Mes de la UMA","Febrero en adelante"]
[null,"Valor de la UMA",{"$f":"IFERROR(VLOOKUP(C40,GENERALES1!B25:C26,2,FALSE),\"\")","v":113.14}]
[null,"¿Días de aguinaldo que se otorgan?",15]
[null,"% de la prima vacacional",0.25]
[null,"¿Cuántos alimentos se le dan al trabajador?",1,{"$f":"IF(C44<>\"\",\"¿Cuánto se cobra al trabajador?\",\"\")","v":"¿Cuánto se cobra al trabajador?"},23,{"$f":"IFERROR(IF(E44<($C$41*0.2),\"Parte que integra\",\"\"),\"\")","v":""},{"$f":"IFERROR(IF(F44<>\"\",IF(C44=1,ROUND(C37*8.33%,IF(C44=2,ROUND(C37*16.66%,2),ROUND(C37*25%,2))),\"\"),\"\"),\"\")","v":""}]
[null,"¿Se otorga habitación al trabajador?","No",{"$f":"IF(C45=\"Sí\",\"¿Cuánto se cobra al trabajador?\",\"\")","v":""},null,{"$f":"IFERROR(IF(E45<($C$41*0.2),\"Parte que integra\",\"\"),\"\")","v":"Parte que integra"},{"$f":"IFERROR(IF(AND(F45<>\"\",C45=\"Sí\"),ROUND(C37*25%,2),\"\"),\"\")","v":""}]
[null,"¿% que aporta el patrón al fondo de ahorro?",0.1,{"$f":"IF(C46<>\"\",\"¿% que aporta el trabajador?\",\"\")","v":"¿% que aporta el trabajador?"},0.1,{"$f":"IF(C46<>E46,\"Parte que integra\",\"\")","v":""},{"$f":"IFERROR(IF(F46<>\"\",ROUND((C37*C46)-(C37*E46),2),\"\"),\"\")","v":""}]
[null,"¿Se otorga despensa al trabajador?","Sí",{"$f":"IF(C47<>\"\",\"¿Cuánto se le entrega?\",\"\")","v":"¿Cuánto se le entrega?"},55,{"$f":"IF(C47<>E47,\"Parte que integra\",\"\")","v":"Parte que integra"},{"$f":"IFERROR(IF(F47<>\"\",IF(E47>=(C41*0.4),ROUND(E47-(C41*0.4),2),\"\"),\"\"),\"\")","v":9.74}]
[null,"¿Labora todos los domingos del año?","Sí",{"$f":"IF(C48=\"Sí\",\"¿% de la prima dominical?\",\"\")","v":"¿% de la prima dominical?"},0.25]
[]
[null,"Determinación del factor de integración"]
[null,"Aguinaldo",null,{"$f":"IFERROR(ROUND(C52/C53,4),\"\")","v":4.1099999999999998E-2}]
[null,"Días de aguinaldo que se otorgan",{"$f":"IFERROR(IF(C42<>\"\",C42,\"\"),\"\")","v":15}]
[null,"(/) Días del año",{"$f":"IF(C52<>\"\",365,\"\")","v":365}]
[null,"(+) Prima vacacional",null,{"$f":"IFERROR(ROUND(C55/C56*C57,4),\"\")","v":8.2000000000000007E-3}]
[null,"Días de vacaciones que le corresponden",{"$f":"IFERROR(IF(AND(C35<>\"\",C36<>\"\"),VLOOKUP(VALUE(DATEDIF(C35,C36,\"y\")&\".\"&DATEDIF(C35,C36,\"ym\")&DATEDIF(C35,C36,\"md\")),TABLAV,3),\"\"),\"\")","v":12}]
[null,"(/) Días del año",{"$f":"IF(C55<>\"\",365,\"\")","v":365}]
[null,"(x) % de la prima vacacional",{"$f":"IFERROR(IF(C43<>\"\",C43,\"\"),\"\")","v":0.25}]
[null,"(+) Prima dominical (en su caso)",null,{"$f":"IFERROR(ROUND(C59/C60*C61,4),\"\")","v":3.56E-2}]
[null,"Domingos del año",{"$f":"IFERROR(IF(C48=\"Sí\",52,\"\"),\"\")","v":52}]
[null,"(/) Días del año",{"$f":"IFERROR(IF(C48=\"Sí\",365,\"\"),\"\")","v":365}]
[null,"(x) % de la prima dominical",{"$f":"IFERROR(IF(C48=\"Sí\",E48,\"\"),\"\")","v":0.25}]
[null,"(+) La unidad",null,{"$f":"IF(AND(C52<>\"\",C55<>\"\"),1,\"\")","v":1}]
[null,"(=) Factor de integración",null,{"$f":"IFERROR(IF(D51<>\"\",SUMIF(D51:D62,\">0\"),\"\"),\"\")","v":1.0849}]
[]
[null,"Determinación del salario base de cotización"]
[null,"Salario diario",null,{"$f":"IFERROR(IF(C37<>\"\",C37,\"\"),\"\")","v":500}]
[null,"(x) Factor de integración",null,{"$f":"IFERROR(IF(D63<>\"\",D63,\"\"),\"\")","v":1.0849}]
[null,"(=) Resultado",null,{"$f":"IFERROR(ROUND(D66*D67,2),\"\")","v":542.45000000000005}]
[null,"(+) Alimentación",null,{"$f":"IF(G44<>\"\",G44,\"\")","v":""}]
[null,"(+) Habitación",null,{"$f":"IF(G45<>\"\",G45,\"\")","v":""}]
[null,"(+) Fondo de ahorro",null,{"$f":"IF(G46<>\"\",G46,\"\")","v":""}]
[null,"(+) Despensa",null,{"$f":"IF(G47<>\"\",G47,\"\")","v":9.74}]
[null,"(=) Salario base de cotización en partes fijas",null,{"$f":"IFERROR(ROUND(SUMIF(D67:D72,\">0\"),2),0)","v":553.27}]
[]
[]
[null,"Determinación de las partes variables"]
[null,"Días devengados del bimestre",61]
[]
[null,null,"Importe 1er. Mes","Importe 2° mes","Total","Importe x día del bimestre","Límite máximo","Parte que no integra","Parte que integra"]
[null,"Premio de puntualidad",1500,1500,{"$f":"IF(OR(C80<>\"\",D80<>\"\"),SUM(C80:D80),\"\")","v":3000},{"$f":"IFERROR(ROUND(E80/$C$77,2),\"\")","v":49.18},{"$f":"IFERROR(IF(E80<>\"\",ROUND(D73*0.1,2),\"\"),\"\")","v":55.33},{"$f":"IF(F80<>\"\",IF(F80>=G80,G80,F80),\"\")","v":49.18},{"$f":"IF(F80<>\"\",IF(F80>G80,F80-G80,0),\"\")","v":0}]
[null,"Premio de asistencia",900,900,{"$f":"IF(OR(C81<>\"\",D81<>\"\"),SUM(C81:D81),\"\")","v":1800},{"$f":"IFERROR(ROUND(E81/$C$77,2),\"\")","v":29.51},{"$f":"IFERROR(IF(E81<>\"\",ROUND(D73*0.1,2),\"\"),\"\")","v":55.33},{"$f":"IF(F81<>\"\",IF(F81>=G81,G81,F81),\"\")","v":29.51},{"$f":"IF(F81<>\"\",IF(F81>G81,F81-G81,0),\"\")","v":0}]
[null,"Bonos",2500,3200,5700,93.44]
[null,"Tiempo extra triple",null,null,"",""]
[null,"Otros",null,null,"",""]
[null,null,null,null,"Total partes variables",{"$f":"IFERROR(SUM(I80:I81,F82:F84),0)","v":93.44}]
[]
[null,"Artículo 28 LSS. Los asegurados se inscribirán con el salario base de cotización que perciban en el momento de su afiliación, estableciéndose como límite superior el equivalente a veinticinco veces el salario mínimo general que rija en el Distrito Federal y como límite inferior el salario mínimo general del área geográfica respectiva."]
[]
[null,"Importe en partes fijas",{"$f":"IFERROR(IF(D73<>\"\",D73,\"\"),\"\")","v":553.27}]
[null,"(+) Importe en partes variables",{"$f":"IFERROR(IF(AND(F85<>\"\",F85>0),F85,\"\"),\"\")","v":93.44}]
[null,"(=) Total",{"$f":"IF(C89<>\"\",SUMIF(C89:C90,\">0\"),\"\")","v":646.71}]
[]
[null,"Salario base de cotización",{"$f":"IFERROR(IF(C91<ROUND(C39*D63,2),ROUND(C39*D63,2),IF(C91>ROUND(C41*25,2),ROUND(C41*25,2),C91)),\"\")","v":646.71}]

{"sheet":"SBCP","index":4,"n_rows":23,"n_cols":5,"rows_kept":23,"cut":false,"hidden":false,"merged":[[22,1,22,3],[12,1,12,2],[13,1,13,2],[14,1,14,2],[18,1,18,2],[20,1,20,2],[4,2,4,3],[5,1,5,3],[11,1,11,2],[10,1,10,2],[7,1,7,2],[9,1,9,2]]}
[]
[null,null,null,"Ir al MENÚ"]
[null,"Determinación del salario base de cotización"]
[]
[null,"Nombre del trabajador"]
[null,"Ingreso Bruto Mensual: Es la suma de los conceptos generados por la persona trabajadora de plataformas digitales por tarea, servicio, obra o trabajo realizado, premios y estímulos o cualquier figura análoga otorgada por la persona empleadora, antes que se aplique cualquier tipo de exclusión, sin considerar los montos que las personas trabajadoras reciban por concepto de propinas.\nFundamento: Reglas de caracter general LFT (27/06/2025)"]
[]
[null,"Fecha de cálculo"]
[null,"Salario mínimo mensual de la Ciudad de México",null,{"$f":"278.8*30","v":8364}]
[null,"Pago a la persona trabajadores por mes"]
[null,"Tipo de transporte"]
[null,"Vehículos motorizados de cuatro o más ruedas de combustión interna, eléctricos o análogos.",null,{"$f":"IFERROR(IF(D8<>\"\",VLOOKUP(B12,GENERALES1!$H$6:$J$8,IF(AND(MONTH(D8)>=7,MONTH(D8)<=9),3,2),FALSE),\"\"),\"\")","v":""}]
[null,"Cuarta. Exclusión de la herramienta de trabajo.\nPara calcular el Ingreso Neto Mensual de las personas trabajadoras en plataformas digitales, se tomará el Ingreso Bruto Mensual al que se aplicará la exclusión de un porcentaje diferenciado derivado del uso intensivo y continuo de la plataforma digital como herramienta de trabajo tecnológica proporcionada por el patrón, bajo los parámetros establecidos en la siguiente Disposición.\nFundamento: Reglas de caracter general LFT (27/06/2025)",null,{"$f":"IFERROR(ROUND(D10*D12,2),\"\")","v":""}]
[null,"(=) Salario neto mensual",null,{"$f":"IFERROR(ROUND(D10-D13,2),\"\")","v":""},{"$f":"IF(D14<>\"\",IF(D14>=D9,\"Persona trabajadora de plataformas digitales\",IF(D14<D9,\"Trabajador independiente\",\"\")),\"\")","v":""}]
[null,"Ingreso Neto Mensual: Es el monto económico al que le fueron aplicadas las exclusiones correspondientes, sin afectar el Ingreso Bruto Mensual que recibe la persona trabajadora de plataformas digitales.\nFundamento: Reglas de caracter general LFT (27/06/2025)"]
[]
[null,"Determinación del Salario base de cotización"]
[null,"Ingreso neto mensual",null,{"$f":"IFERROR(IF(D14>=D9,D14,\"\"),\"\")","v":""}]
[null,"Salario Base de Cotización: El Ingreso Neto Mensual de la persona trabajadora de plataformas digitales, entre los días del mes calendario, y sobre el cual se calcularán las cuotas obrero-patronales correspondientes, de conformidad con lo previsto en la Ley del Seguro Social.\nFundamento: Reglas de caracter general LFT (27/06/2025)"]
[null,"(/) Días del mes",null,{"$f":"IFERROR(DAY(EOMONTH(D8,0)),\"\")","v":31}]
[null,"(=) Salario base de cotización",null,{"$f":"IFERROR(ROUND(D18/D20,2),\"\")","v":""}]
[]
[null,"Reglas IMSS\n4.1 Los patrones de las personas trabajadoras de plataformas digitales podrán optar por cumplir las obligaciones en materia de seguridad social conforme al Régimen Obligatorio de la LSS al que se refiere la fracción I del artículo 12 de la misma, o bien en los términos de las presentes Reglas, en cuyo caso tendrán las siguientes obligaciones en materia de seguridad social:\n\nb) Inscribir ante el IMSS a las personas susceptibles de prestar sus servicios a través de las empresas de plataformas digitales referidas en el capítulo IX BIS de la LFT desde su registro en la plataforma, con al menos un salario mínimo general diario de la Ciudad de México."]

{"sheet":"GUIA","index":5,"n_rows":118,"n_cols":6,"rows_kept":118,"cut":false,"hidden":false,"merged":[[99,1,99,5],[100,1,100,5],[101,1,101,5],[32,1,32,5],[34,1,34,5],[33,1,33,5],[79,1,79,5],[80,1,80,5],[77,1,77,5],[78,1,78,5],[53,1,53,5],[54,1,54,5],[76,1,76,5],[3,1,3,5],[31,1,31,5],[8,1,8,5],[13,1,13,5],[14,1,14,5],[15,1,15,5]]}
[]
[null,null,null,null,"Ir al MENÚ"]
[]
[null,"Inscripción / Reingreso \nMarca el inicio de un periodo de aseguramiento que la plataforma comunica al IMSS. Este movimiento se puede transmitir en cualquier momento del mes, justo para proteger al trabajador antes de que inicie actividades del periodo con la plataforma. Su estructura y valores para las plataformas digitales son los siguientes:"]
[]
[null,"Nombre del campo","Tipo","Posiciones","Longitud","Características / valores"]
[null,"Número de Registro Patronal","AN","01 a 11",11,"Número asignado por el IMSS a la empresa de plataformas digitales."]
[null,"Número de Seguridad Social","N","12 a 22",11,"Número asignado por el IMSS al trbajador. En caso de que el trabajador no lo tenga o conozca, podrá obternerlo en el portal IMSS²"]
[null,"2 Para obtener o localizar el número de seguridad social, los trabajadores deberán acudir a la siguiente dirección con su CURP y una cuenta de correo electrónico: http://www.imss.gob.mx/tramites/imss02008 "]
[null,"Primer Apellido","A","23 a 49",27,"Primer Apellido del Asegurado"]
[null,"Segundo Apellido","A","50 a 76",27,"Segundo Apellido del Asegurado"]
[null,"Nombre(S)","A","77 a 103",27,"Nombre(s) del asegurado"]
[null,"Salario base de cotización","N","104 a 109",6,"Sueldo más prestaciones en forma diaria. Ver regla 4.1.b)"]
[null,"Reglas IMSS\nInscribir ante el IMSS a las personas susceptibles de prestar sus servicios a través de las empresas de plataformas digitales referidas en el capítulo IX BIS de la LFT desde su registro en la plataforma, con al menos un salario mínimo general diario de la Ciudad de México."]
[null,"Glosario de terminos reglas IMSS\nIngreso Neto Mensual: El referido por la Ley Federal del Trabajo respecto de las personas trabajadoras de plataformas digitales."]
[null,"Reglas IMSS\n6.1 En el caso de la persona trabajadora de plataforma digital que genere ingresos netos mensuales equivalentes a, por lo menos, un salario mínimo general mensual de la Ciudad de México, el salario base de cotización corresponderá a la división del total del ingreso neto mensual percibido en el mes de que se trate, entre los días calendario del mismo mes."]
[null,"Sin contenido","A","110 a 115",6,"Espacios en blanco"]
[null,"Tipo de trabajador","N",116,1,"2 - Trabajador Eventual de la Ciudad"]
[null,"Tipo de salario","N",117,1,"1 - Salario variable"]
[null,"Jornada redudica","N",118,1,"6 - Jornada reducida"]
[null,"Fecha de movimiento","N","119 a 126",8,"Fecha de inicio de labores (DDMMYYYY) "]
[null,"UMF","N","127 A 129",3,"Clínica de adscripción del asegurado"]
[null,"Sin contenido","A","137 a 138",5,"Espacios en blanco"]
[null,"Tipo de movimiento","N","132 133",2,"08 - Reingreso"]
[null,"Sin contenido","A","134 a 138",5,"Espacios en blanco"]
[null,"Clave del trabajador","AN","139 A 148",10,"Clave asignada por el patrón"]
[null,"Sin contenido","A",149,1,"Espacios en blanco"]
[null,"Clave única de registro de población","AN","150 A 167",18,"Número asignado por la Secretaría de Gobernación 18 posiciones en forma alfanumérica"]
[null,"Identificador del formato","N",168,1,"Dígito nuevo (9). Terminador de registro"]
[]
[null,"Baja trabajadores del IMSS"]
[null,"Vencido el mes calendario, determinar el universo de personas trabajadoras de las empresas de plataformas digitales referidas en el capítulo IX BIS de la LFT sujetas a aseguramiento, en virtud del cumplimiento de los requisitos establecidos en la LFT. \nFundamento: Reglas IMSS 4.1 inciso d)"]
[null,"Guía para la integración de movimientos afiliatorios\nBaja \nIndica el cierre de una inscripción en un periodo. Posterior al movimiento de Inscripción / reingreso, son los únicos movimientos que deben transmitirse durante el desarrollo del mes. "]
[null,{"$error":"#VALUE!"}]
[null,"Utilícese este movimiento de baja únicamente para cerrar el periodo de aseguramiento de aquellas personas que sí alcanzaron la condición de trabajadores de plataformas digitales, para quienes no, revísese el movimiento de Cancelación de Inscripción, que se presenta más adelante. "]
[]
[null,"Nombre del campo","Tipo","Posiciones","Longitud","Características / valores"]
[null,"Número de Registro Patronal","AN","01 a 11",11,"Registro asignado por el IMSS en 11 posiciones alfanumérico "]
[null,"Número de Seguridad Social","N","12 a 22",11,"Número de registro del trabajador asignado por el IMSS"]
[null,"Primer Apellido","A","23 a 49",27,"Primer Apellido del Asegurado"]
[null,"Segundo Apellido","A","50 a 76",27,"Segundo Apellido del Asegurado"]
[null,"Nombre(S)","A","77 a 103",27,"Nombre(s) del asegurado"]
[null,"Sin contenido","A","104 A 118",15,"Espacios en blanco"]
[null,"Fecha de movimiento","N","119 a 126",8,"Fecha del movimiento de baja (DDMMYYYY) "]
[null,"Sin contenido","A","127 A 131",5,"Espacios en blanco"]
[null,"Tipo de movimiento","N","132 133",2,"02 - Baja"]
[null,"Sin contenido","A","134 a 138",5,"Espacios en blanco"]
[null,"Clave del trabajador","AN","139 A 148",10,"Clave asignada por el patrón"]
[null,"Causa de baja","AN",149,1,"1 - Termino de contrato\n2 - Separación voluntaria\n3 - Abandono de empleo\n4 - Defunción\n5 - Clausura\n6 - Otras\n7 - Ausentismo\n8 - Rescición de contrato\n9 - Jubilación\nA - Pensión"]
[null,"Clave única de registro de población","AN","150 A 167",18,"Número asignado por el Registro Nacional de Población "]
[null,"Identificador del formato","N",168,1,"Dígito nuevo (9)."]
[]
[null,"Modificación de salario"]
[null,"Respecto de las personas trabajadoras de plataformas digitales que cumplan con los requisitos de la LFT, ajustar el salario base de cotización dentro de los primeros cinco días naturales del mes inmediato posterior al mes del aseguramiento, para lo cual deberán presentar los movimientos afiliatorios respectivos, en términos de lo dispuesto por el numeral 6 de las presentes Reglas.\nFundamento: Reglas IMSS 4.1 inciso f)"]
[null,"Guía para la integración de movimientos afiliatorios\nEn caso de haber cambios de salario dentro del periodo, el movimiento de modificación de salario permite cerrar el periodo vigente con el anterior salario declarado (desde el reingreso o modificación de salario anterior) y abrir un nuevo periodo con el nuevo salario indicado en el campo “Salario base de cotización”. \n\nEste movimiento es el estándar en los movimientos afiliatorios que manejan los patrones del régimen obligatorio de  "]
[]
[null,"Nombre del campo","Tipo","Posiciones","Longitud","Características / valores"]
[null,"Número de Registro Patronal","AN","01 a 11",11,"Registro asignado por el IMSS en 11 posiciones alfanumérico"]
[null,"Número de Seguridad Social","N","12 a 22",11,"Número de registro del trabajador asignado por el IMSS"]
[null,"Primer Apellido","A","23 a 49",27,"Primer Apellido del Asegurado"]
[null,"Segundo Apellido","A","50 a 76",27,"Segundo Apellido del Asegurado"]
[null,"Nombre(S)","A","77 a 103",27,"Nombre(s) del asegurado"]
[null,"Salario base de cotización","N","104 a 109",6,"Sueldo más prestaciones en forma diaria."]
[null,"Sin contenido","A","110 a 116",7,"Espacios en blanco"]
[null,"Tipo de salario","N",117,1,"1 - Salario variable"]
[null,"Jornada redudica","N",118,1,"6 - Jornada reducida"]
[null,"Fecha de movimiento","N","119 a 126",8,"Fecha de la modificación de salario (DDMMYYYY) "]
[null,"Sin contenido","A","127 a 131",5,"Espacios en blanco"]
[null,"Tipo de movimiento","N","132 133",2,"07 - Modificación de salario"]
[null,"Sin contenido","A","134 a 138",5,"Espacios en blanco"]
[null,"Clave del trabajador","AN","139 A 148",10,"Clave asignada por el patrón"]
[null,"Sin contenido","A",149,1,"Espacios en blanco"]
[null,"Clave única de registro de población","AN","150 A 167",18,"Número asignado por la Secretaría de Gobernación 18 posiciones en forma alfanumérica"]
[null,"Identificador del formato","N",168,1,"Dígito nuevo (9)."]
[]
[]
[null,"Guía para la integración de movimientos afiliatorios\n Los siguientes dos son movimientos que se han creado exclusivamente para las empresas de plataformas digitales."]
[null,"Presentar, dentro de los primeros cinco días naturales del mes inmediato posterior al mes del aseguramiento, los movimientos afiliatorios de baja de las personas que no califiquen como personas trabajadoras de plataformas digitales, debiendo notificarlo de manera simultánea al IMSS y a dichas personas.\nFundamento: Reglas IMSS 4.1 inciso e)"]
[null,"Guía para la integración de movimientos afiliatorios\nCancelación de inscripción \nEn atención a la siguiente regla, deberá presentar el movimiento de cancelación de inscripción:"]
[null,"Este movimiento elimina la inscripción vigente en la cuenta individual del trabajador, si la persona alcanzó el mínimo de ingresos del mes no deberá utilizarse la cancelación, sino el movimiento de baja presentado antes.  "]
[null,{"$error":"#VALUE!"}]
[]
[null,"Nombre del campo","Tipo","Posiciones","Longitud","Características / valores"]
[null,"Número de Registro Patronal","AN","01 a 11",11,"Registro asignado por el IMSS en 11 posiciones alfanumérico"]
[null,"Número de Seguridad Social","N","12 a 22",11,"Número de registro del trabajador asignado por el IMSS"]
[null,"Primer Apellido","A","23 a 49",27,"Primer Apellido del Asegurado"]
[null,"Segundo Apellido","A","50 a 76",27,"Segundo Apellido del Asegurado"]
[null,"Nombre(S)","A","77 a 103",27,"Nombre(s) del asegurado"]
[null,"Sin contenido","A","104 a 108",15,"Espacios en blanco"]
[null,"Fecha de movimiento","N","119 a 126",8,"Fecha de inicio del periodo a cancelar (DDMMYYYY)"]
[null,"Sin contenido","A","127 a 131",5,"Espacios en blanco"]
[null,"Tipo de movimiento","N","132 133",2,"54 - Cancelación de periodo"]
[null,"Sin contenido","A","134 a 138",5,"Espacios en blanco"]
[null,"Clave del trabajador","AN","139 A 148",10,"Clave asignada por el patrón"]
[null,"Causa de baja","A",149,1,"4 - Defunción\n6 - Otras\n9 - Jubilación\nA - Pensión"]
[null,"Clave única de registro de población","AN","150 A 167",18,"Número asignado por la Secretaría de Gobernación 18 posiciones en forma alfanumérica"]
[null,"Identificador del formato","B",168,1,"Dígito nuevo (9)."]
[]
[]
[null,"Respecto de las personas trabajadoras de plataformas digitales que cumplan con los requisitos de la LFT, ajustar el salario base de cotización dentro de los primeros cinco días naturales del mes inmediato posterior al mes del aseguramiento, para lo cual deberán presentar los movimientos afiliatorios respectivos, en términos de lo dispuesto por el numeral 6 de las presentes Reglas.\nFundamento: Reglas IMSS 4.1 inciso f)"]
[null,"Guía para la integración de movimientos afiliatorios\nCorrección de salario\nA diferencia del movimiento de modificación de salario, este movimiento modifica directamente el salario registrado mediante el reingreso vigente. Lo anterior permite cumplir la regla siguiente:"]
[null,{"$error":"#VALUE!"}]
[null,"Nombre del campo","Tipo","Posiciones","Longitud","Características / valores"]
[null,"Número de Registro Patronal","AN","01 a 11",11,"Registro asignado por el IMSS en 11 posiciones alfanumérico"]
[null,"Número de Seguridad Social","N","12 a 22",11,"Número de registro del trabajador asignado por el IMSS"]
[null,"Primer Apellido","A","23 a 49",27,"Primer Apellido del Asegurado"]
[null,"Segundo Apellido","A","50 a 76",27,"Segundo Apellido del Asegurado"]
[null,"Nombre(S)","A","77 a 103",27,"Nombre(s) del asegurado"]
[null,"Salario base de cotización","N","104 a 109",6,"Sueldo más prestaciones en forma diaria."]
[null,"Sin contenido","A","110 a 116",7,"Espacios en blanco"]
[null,"Fecha del movimiento","N","119 a 126",8,"Fecha de inicio de labores (DDMMYYYY)"]
[null,"Sin contenido","A","127 a 131",5,"Espacios en blanco"]
[null,"Tipo de movimiento","N","132 a 133",2,"55 - Corrección de salario"]
[null,"Sin contenido","A","134 a 138",5,"Espacios en blanco"]
[null,"Clave del trabajador","AN","139 A 148",10,"Clave asignada por el patrón"]
[null,"Sin contenido","A",149,1,"Espacios en blanco"]
[null,"Clave única de registro de población","AN","150 A 167",18,"Número asignado por la Secretaría de Gobernación 18 posiciones en forma alfanumérica"]
[null,"Identificador del formato","N",168,1,"Dígito nuevo (9)."]

{"sheet":"DCUOTAS","index":6,"n_rows":119,"n_cols":11,"rows_kept":119,"cut":false,"hidden":false,"merged":[[100,1,100,2],[101,1,101,2],[102,1,102,2],[103,1,103,2],[109,3,109,10],[99,1,99,2],[4,2,4,3],[95,1,95,2],[96,1,96,2],[97,1,97,2],[98,1,98,2]]}
[]
[null,null,"Ir al MENÚ"]
[null,"Determinación de las cuotas obrero - patronales"]
[]
[null,"Nombre del trabajador"]
[null,"Ejercicio de cálculo"]
[null,"Salario diario"]
[null,"Salario base de cotización"]
[null,"Prima de riesgo de trabajo"]
[null,"Salario mínimo general"]
[null,"Valor de la UMA"]
[null,"Días a cotizar"]
[null,"Faltas"]
[null,"Incapacidad"]
[]
[]
[null,"Cuota patronal"]
[null,"Riesgo de trabajo"]
[null,"Salario base de cotización",{"$f":"C8","v":0}]
[null,"(x) Prima de riesgo de trabajo",{"$f":"C9","v":0}]
[null,"(=) Prima correspondiente",{"$f":"IFERROR(C19*C20,\"\")","v":0}]
[null,"(x) Días a cotizar - faltas - incapacidad",{"$f":"C12-C13-C14","v":0}]
[null,"(=) Cuota x riesgo de trabajo",{"$f":"IFERROR(ROUND(C21*C22,2),\"\")","v":0}]
[]
[]
[null,"Cuota patronal"]
[null,"Enfermedad y maternidad cuota fija"]
[null,"Valor de la UMA",{"$f":"C11","v":0}]
[null,"(X) Cuota patrón",0.20399999999999999]
[null,"(=) Cuota diaria",{"$f":"IFERROR(C28*C29,\"\")","v":0}]
[null,"(x) Días a cotizar - incapacidad",{"$f":"C12-C14","v":0}]
[null,"(=) Cuota patronal",{"$f":"IFERROR(C30*C31,\"\")","v":0}]
[]
[null,"Cuota patronal",null,null,"Cuota obrera"]
[null,"Enfermedad y maternidad excedente 3 veces el salario mínimo del D.F.",null,null,"Enfermedad y maternidad excedente 3 veces el salario mínimo del D.F."]
[null,"Salario Base de Cotización",{"$f":"C8","v":0},null,"Salario Base de Cotización",{"$f":"C8","v":0}]
[null,"(-) 3 umas",{"$f":"ROUND(C11*3,2)","v":0},null,"(-) 3 umas",{"$f":"ROUND(C11*3,2)","v":0}]
[null,"(=) Excedente 3 umas",{"$f":"IFERROR(IF(C36>=C37,C36-C37,0),0)","v":0},null,"(=) Excedente 3 umas",{"$f":"IFERROR(IF(F36>=F37,F36-F37,0),0)","v":0}]
[null,"(x) Cuota patronal",1.0999999999999999E-2,null,"(x) Cuota obrera",4.0000000000000001E-3]
[null,"(=) Cuota diaria",{"$f":"IFERROR(ROUND(C38*C39,4),0)","v":0},null,"(=) Cuota diaria",{"$f":"IFERROR(ROUND(F38*F39,4),0)","v":0}]
[null,"(x) Días a cotizar - incapacidad",{"$f":"C12-C14","v":0},null,"(x) Días a cotizar - incapacidad",{"$f":"C12-C14","v":0}]
[null,"(=) Cuota patronal excedente",{"$f":"IFERROR(C40*C41,0)","v":0},null,"(=) Cuota obrera excedente",{"$f":"IFERROR(F40*F41,0)","v":0}]
[]
[null,"Cuota patronal",null,null,"Cuota obrera"]
[null,"Enfermedad y maternidad prestaciones en dinero",null,null,"Enfermedad y maternidad prestaciones en dinero"]
[null,"Salario base de cotización",{"$f":"C8","v":0},null,"Salario base de cotización",{"$f":"C8","v":0}]
[null,"(x) Cuota patronal",7.0000000000000001E-3,null,"(x) Cuota patronal",2.5000000000000001E-3]
[null,"(=) Prima correspondiente",{"$f":"IFERROR(C46*C47,\"\")","v":0},null,"(=) Prima correspondiente",{"$f":"IFERROR(F46*F47,\"\")","v":0}]
[null,"(x) Días a cotizar - incapacidad",{"$f":"C12-C14","v":0},null,"(x) Días a cotizar - incapacidad",{"$f":"C12-C14","v":0}]
[null,"(=) Cuota patronal",{"$f":"IFERROR(ROUND(C48*C49,2),\"\")","v":0},null,"(=) Cuota obrera",{"$f":"IFERROR(F48*F49,0)","v":0}]
[]
[null,"Cuota patronal",null,null,"Cuota obrera"]
[null,"Enfermedad y maternidad pensionados",null,null,"Enfermedad y maternidad pensionados"]
[null,"Salario base de cotización",{"$f":"C8","v":0},null,"Salario base de cotización",{"$f":"C8","v":0}]
[null,"(x) Cuota patronal",1.0500000000000001E-2,null,"(x) Cuota patronal",3.7499999999999999E-3]
[null,"(=) Prima correspondiente",{"$f":"IFERROR(C54*C55,\"\")","v":0},null,"(=) Prima correspondiente",{"$f":"IFERROR(F54*F55,\"\")","v":0}]
[null,"(x) Días a cotizar - incapacidad",{"$f":"C12-C14","v":0},null,"(x) Días a cotizar - incapacidad",{"$f":"C12-C14","v":0}]
[null,"(=) Cuota patronal",{"$f":"IFERROR(ROUND(C56*C57,2),\"\")","v":0},null,"(=) Cuota obrera",{"$f":"IFERROR(F56*F57,0)","v":0}]
[]
[null,"Cuota patronal",null,null,"Cuota obrera"]
[null,"Invalidez y vida",null,null,"Invalidez y vida"]
[null,"Salario base de cotización",{"$f":"C8","v":0},null,"Salario base de cotización",{"$f":"C8","v":0}]
[null,"(x) Cuota patronal",1.7500000000000002E-2,null,"(x) Cuota patronal",6.2500000000000003E-3]
[null,"(=) Prima correspondiente",{"$f":"IFERROR(C62*C63,\"\")","v":0},null,"(=) Prima correspondiente",{"$f":"IFERROR(F62*F63,\"\")","v":0}]
[null,"(x) Días a cotizar - incapacidad - faltas",{"$f":"C12-C13-C14","v":0},null,"(x) Días a cotizar - incapacidad - faltas",{"$f":"C12-C13-C14","v":0}]
[null,"(=) Cuota patronal",{"$f":"IFERROR(ROUND(C64*C65,2),\"\")","v":0},null,"(=) Cuota obrera",{"$f":"IFERROR(F64*F65,0)","v":0}]
[]
[null,"Cuota patronal"]
[null,"Retiro"]
[null,"Salario base de cotización",{"$f":"C8","v":0}]
[null,"(x) Cuota patronal",0.02]
[null,"(=) Prima correspondiente",{"$f":"IFERROR(C70*C71,\"\")","v":0}]
[null,"(x) Días a cotizar - faltas)",{"$f":"C12-C13","v":0}]
[null,"(=) Cuota patronal",{"$f":"IFERROR(ROUND(C72*C73,2),\"\")","v":0}]
[]
[]
[null,"Cuota patronal",null,null,"Cuota obrera"]
[null,"Cesantia en edad avanzada y vejez",null,null,"Cesantia en edad avanzada y vejez"]
[null,"Salario base de cotización",{"$f":"C8","v":0},null,"Salario base de cotización",{"$f":"C8","v":0}]
[null,"(x) Cuota patronal",{"$f":"IFERROR(IF(AND(C8>0,C10>0,C11>0),VLOOKUP(C79,B112:K119,IF(C6=2023,3,IF(C6=2024,4,IF(C6=2025,5,IF(C6=2026,6,IF(C6=2027,7,IF(C6=2028,8,IF(C6=2029,9,IF(C6=2030,10,\"\"))))))))),\"\"),\"\")","v":""},null,"(x) Cuota patronal",1.125E-2]
[null,"(=) Prima correspondiente",{"$f":"IFERROR(C79*C80,\"\")","v":""},null,"(=) Prima correspondiente",{"$f":"IFERROR(F79*F80,\"\")","v":0}]
[null,"(x) Días a cotizar - incapacidad - faltas",{"$f":"C12-C13-C14","v":0},null,"(x) Días a cotizar - incapacidad - faltas",{"$f":"C12-C13-C14","v":0}]
[null,"(=) Cuota patronal",{"$f":"IFERROR(ROUND(C81*C82,2),\"\")","v":""},null,"(=) Cuota obrera",{"$f":"IFERROR(F81*F82,0)","v":0}]
[]
[]
[null,"Cuota patronal"]
[null,"Guarderia"]
[null,"Salario base de cotización",{"$f":"C8","v":0}]
[null,"(x) Cuota patronal",0.01]
[null,"(=) Prima correspondiente",{"$f":"IFERROR(C88*C89,\"\")","v":0}]
[null,"(x) Días a cotizar - incapacidad - faltas",{"$f":"C12-C13-C14","v":0}]
[null,"(=) Cuota patronal",{"$f":"IFERROR(ROUND(C90*C91,2),\"\")","v":0}]
[]
[]
[null,null,null,"Patrón","Trabajador"]
[null,"Riesgo de trabajo",null,{"$f":"C23","v":0}]
[null,"Enfermedad y maternidad cuota fija",null,{"$f":"C32","v":0}]
[null,"Enfermedad y maternidad excedente 3 veces el salario mínimo del D.F.",null,{"$f":"C42","v":0},{"$f":"F42","v":0}]
[null,"Enfermedad y maternidad prestaciones en dinero",null,{"$f":"C50","v":0},{"$f":"F50","v":0}]
[null,"Enfermedad y maternidad pensionados",null,{"$f":"C58","v":0},{"$f":"F58","v":0}]
[null,"Invalidez y vida",null,{"$f":"C66","v":0},{"$f":"F66","v":0}]
[null,"Retiro",null,{"$f":"C74","v":0}]
[null,"Cesantia en edad avanzada y vejez",null,{"$f":"C83","v":""},{"$f":"F83","v":0}]
[null,"Guarderia",null,{"$f":"C92","v":0}]
[null,"Total",null,{"$f":"SUM(D96:D104)","v":0},{"$f":"SUM(E96:E103)","v":0}]
[]
[]
[null,{"$f":"IF(C7=C10,\"El importe le corresponde cubrirlo al patrón de conformidad con el artículo 36 LSS\",\"\")","v":"El importe le corresponde cubrirlo al patrón de conformidad con el artículo 36 LSS"}]
[]
[null,"Cesantía en edad avanzada y vejez",null,"% a aplicar"]
[null,"Valor mímino","Valor máximo",2023,2024,2025,2026,2027,2028,2029,2030]
[null,{"$f":"C10","v":0},{"$f":"C10","v":0},3.15E-2,3.15E-2,3.15E-2,3.15E-2,3.15E-2,3.15E-2,3.15E-2,3.15E-2]
[null,{"$f":"IFERROR(ROUND(C10*1.01,2),\"\")","v":0},{"$f":"IFERROR(ROUND($C$11*1.5,2),\"\")","v":0},3.2809999999999999E-2,3.4130000000000001E-2,3.5439999999999999E-2,3.6760000000000001E-2,3.807E-2,3.9390000000000001E-2,4.07E-2,4.2020000000000002E-2]
[null,{"$f":"IFERROR(ROUND($C$11*1.51,2),\"\")","v":0},{"$f":"IFERROR(ROUND($C$11*2,2),\"\")","v":0},3.5749999999999997E-2,0.04,4.4260000000000001E-2,4.8509999999999998E-2,5.2760000000000001E-2,5.7009999999999998E-2,6.1260000000000002E-2,6.5519999999999995E-2]
[null,{"$f":"IFERROR(ROUND($C$11*2.01,2),\"\")","v":0},{"$f":"IFERROR(ROUND($C$11*2.5,2),\"\")","v":0},3.7510000000000002E-2,4.3529999999999999E-2,4.9540000000000001E-2,5.5559999999999998E-2,6.157E-2,6.7589999999999997E-2,7.3599999999999999E-2,7.9619999999999996E-2]
[null,{"$f":"IFERROR(ROUND($C$11*2.51,2),\"\")","v":0},{"$f":"IFERROR(ROUND($C$11*3,2),\"\")","v":0},3.8690000000000002E-2,4.5879999999999997E-2,5.3069999999999999E-2,6.0260000000000001E-2,6.7449999999999996E-2,7.4639999999999998E-2,8.183E-2,8.9020000000000002E-2]
[null,{"$f":"IFERROR(ROUND($C$11*3.01,2),\"\")","v":0},{"$f":"IFERROR(ROUND($C$11*3.5,2),\"\")","v":0},3.9530000000000003E-2,4.7559999999999998E-2,5.5590000000000001E-2,6.361E-2,7.1639999999999995E-2,7.9670000000000005E-2,8.77E-2,9.5729999999999996E-2]
[null,{"$f":"IFERROR(ROUND($C$11*3.51,2),\"\")","v":0},{"$f":"IFERROR(ROUND($C$11*4.5,2),\"\")","v":0},4.0160000000000001E-2,4.8820000000000002E-2,5.747E-2,6.6129999999999994E-2,7.4789999999999995E-2,8.3449999999999996E-2,9.2109999999999997E-2,0.10077]
[null,{"$f":"IFERROR(ROUND($C$11*4.01,2),\"\")","v":0},99999999999,4.2410000000000003E-2,5.3310000000000003E-2,6.4219999999999999E-2,7.5130000000000002E-2,8.6029999999999995E-2,9.6939999999999998E-2,0.10784000000000001,0.11874999999999999]

{"sheet":"INFONAVIT","index":7,"n_rows":46,"n_cols":9,"rows_kept":46,"cut":false,"hidden":false,"merged":[[2,1,2,8],[3,1,3,8],[4,1,4,8],[5,1,5,8],[6,1,6,8]]}
[null,null,null,null,null,"Ir al MENÚ"]
[]
[null,"Artículo 29 LINFONAVIT.- Son obligaciones de los patrones:\n\nII.- \tDeterminar el monto de las aportaciones del cinco por ciento sobre el salario de los trabajadores a su servicio y efectuar el pago en las entidades receptoras que actúen por cuenta y orden del Instituto, para su abono en la subcuenta de vivienda de las cuentas individuales de los trabajadores previstas en los sistemas de ahorro para el retiro, en los términos de la presente Ley y sus reglamentos, así como en lo conducente, conforme a lo previsto en la Ley del Seguro Social y en la Ley Federal del Trabajo. En lo que corresponde a la integración y cálculo de la base y límite superior salarial para el pago de aportaciones, se aplicará lo contenido en la Ley del Seguro Social.\n..........................................."]
[null,"III.- \tHacer los descuentos a sus trabajadores en sus salarios, conforme a lo previsto en los artículos 97 y 110 de la Ley Federal del Trabajo, que se destinen al pago de abonos para cubrir préstamos otorgados por el Instituto, así como enterar el importe de dichos descuentos en las entidades receptoras que actúen por cuenta y orden del Instituto, en la forma y términos que establece esta Ley y sus disposiciones reglamentarias. La integración y cálculo de la base salarial para efectos de los descuentos será la contenida en la fracción II del presente artículo.\n\nA fin de que el Instituto pueda individualizar dichos descuentos, los patrones deberán proporcionarle la información relativa a cada trabajador en la forma y periodicidad que al efecto establezcan esta Ley y sus disposiciones reglamentarias;"]
[null,"Segundo párrafo\nLa obligación de efectuar las aportaciones a que se refiere la fracción II anterior, se suspenderá cuando no se paguen salarios por ausencias en los términos de la Ley del Seguro Social, siempre que se dé aviso oportuno al Instituto, en conformidad al artículo 31. Tratándose de incapacidades expedidas por el Instituto Mexicano del Seguro Social, subsistirá la obligación del pago de aportaciones. Cuando se trate de la obligación de hacer los descuentos a que se refiere la fracción III no se suspenderá por ausencias o incapacidades en términos de la Ley del Seguro Social.\nPárrafo adicionado DOF 06-01-1997. Reformado DOF 21-02-2025"]
[null,{"$error":"#VALUE!"}]
[null,"INSTITUTO DEL FONDO NACIONAL DE LA VIVIENDA PARA LOS TRABAJADORES\nAVISO por el que se hace del conocimiento del público en general el plazo legal otorgado a los patrones a efecto de realizar los ajustes a sus sistemas y procesos administrativos internos para determinar, realizar y enterar los descuentos a los salarios de sus trabajadores que se destinen al pago de abonos para cubrir préstamos otorgados por el Instituto con base en la reforma del artículo 29 de la Ley del Instituto del Fondo Nacional de la Vivienda para los Trabajadores, publicada el 21 de febrero de 2025, en los términos que se indican.\n\nPROCESOS ADMINISTRATIVOS INTERNOS PARA DETERMINAR, REALIZAR Y ENTERAR LOS DESCUENTOS A LOS SALARIOS DE SUS TRABAJADORES QUE SE DESTINEN AL PAGO DE ABONOS PARA CUBRIR PRÉSTAMOS OTORGADOS POR EL INSTITUTO CON BASE EN LA REFORMA DEL ARTÍCULO 29 DE LA LEY DEL INSTITUTO DEL FONDO NACIONAL DE LA VIVIENDA PARA LOS TRABAJADORES, PUBLICADA EN EL DIARIO OFICIAL DE LA FEDERACIÓN EL  21 DE FEBRERO DE 2025, EN LOS TÉRMINOS QUE SE INDICAN\nÚNICO.- De conformidad con lo dispuesto por los artículos 1o.; 16 fracciones II, XII, XX y XX; 23 fracciones I, y X, todos de la Ley del Instituto del Fondo Nacional de la Vivienda para los Trabajadores; 4o., fracción V, del Estatuto Orgánico del Instituto del Fondo Nacional de la Vivienda para los Trabajadores; así como la Resolución RCA-14500-03/25 de 19 de marzo de 2025, del Consejo de Administración del Instituto del Fondo Nacional de la Vivienda para los Trabajadores; así como los demás ordenamientos aplicables, se hace del conocimiento de los acreditados, derechohabientes, patrones, y demás público en general que, se reconoce un plazo razonable para la transición en la implementación de la reforma al artículo 29 de la Ley del Instituto del Fondo Nacional de la Vivienda para los Trabajadores, prevista en el DECRETO POR EL QUE SE REFORMAN, ADICIONAN Y DEROGAN DIVERSAS DISPOSICIONES DE LA LEY DEL INSTITUTO DEL FONDO NACIONAL DE LA VIVIENDA PARA LOS TRABAJADORES Y DE LA LEY FEDERAL DEL TRABAJO, EN MATERIA DE VIVIENDA CON ORIENTACIÓN SOCIAL publicada en el Diario Oficial de la Federación del 21 de febrero de 2025, vigente a partir del día siguiente al de su publicación, por lo que los patrones deberán realizar los ajustes a sus sistemas y procesos para determinar, realizar y enterar en términos de la legislación aplicable, los descuentos a los salarios de sus trabajadores que se destinen al pago de abonos para cubrir préstamos otorgados por el Instituto, para aplicar esta disposición a partir del pago de salarios correspondientes al 4° bimestre de 2025; esto es, los correspondientes a los meses de julio y agosto, que deberá realizarse a más tardar el 17 de septiembre de 2025."]
[]
[]
[null,"Trabajador 1"]
[null,"Crédito INFONAVIT",1250,"Por mes"]
[null,"Días de julio",31]
[null,"(=) Descuento x día",{"$f":"C11/C12","v":40.322580645161288}]
[]
[null,"Día trabajado","Día trabajado","Falta","Incapacidad","Días laborados","Días acumulados","Descuento","Acumulado del descuento"]
[null,{"$f":"C12","v":31},{"$f":"IF(B16>=1,1,\"\")","v":1},null,null,{"$f":"IFERROR(C16-D16-E16,0)","v":1},{"$f":"IFERROR(B16-F16,0)","v":30},{"$f":"IFERROR(IF(F16=1,C13,0),0)","v":40.322580645161288},{"$f":"IFERROR($C$11-SUM($H$16:H16),0)","v":1209.6774193548388}]
[null,{"$f":"IF((B16-1)>=1,B16-1,\"\")","v":30},{"$f":"IF(B17>=1,1,\"\")","v":1},null,null,{"$f":"IFERROR(C17-D17-E17,0)","v":1},{"$f":"IFERROR(B17-F17,0)","v":29},{"$f":"IFERROR(IF(F17=1,I16/G16,0),0)","v":40.322580645161295},{"$f":"IFERROR($C$11-SUM($H$16:H17),0)","v":1169.3548387096773}]
[null,{"$f":"IF((B17-1)>=1,B17-1,\"\")","v":29},1,null,null,1,28,{"$f":"IFERROR(IF(F18=1,I17/G17,0),0)","v":40.322580645161288},{"$f":"IFERROR($C$11-SUM($H$16:H18),0)","v":1129.0322580645161}]
[null,28,1,null,null,1,27,40.322580645161288,{"$f":"IFERROR($C$11-SUM($H$16:H19),0)","v":1088.7096774193549}]
[null,27,1,null,null,1,26,40.322580645161288,{"$f":"IFERROR($C$11-SUM($H$16:H20),0)","v":1048.3870967741937}]
[null,26,1,null,null,1,25,40.322580645161295,{"$f":"IFERROR($C$11-SUM($H$16:H21),0)","v":1008.0645161290322}]
[null,25,1,null,null,1,24,40.322580645161288,{"$f":"IFERROR($C$11-SUM($H$16:H22),0)","v":967.74193548387098}]
[null,24,1,1,null,0,24,0,{"$f":"IFERROR($C$11-SUM($H$16:H23),0)","v":967.74193548387098}]
[null,23,1,null,null,1,22,40.322580645161288,{"$f":"IFERROR($C$11-SUM($H$16:H24),0)","v":927.41935483870975}]
[null,22,1,null,null,1,21,42.15542521994135,{"$f":"IFERROR($C$11-SUM($H$16:H25),0)","v":885.26392961876832}]
[null,21,1,null,null,1,20,42.15542521994135,{"$f":"IFERROR($C$11-SUM($H$16:H26),0)","v":843.10850439882699}]
[null,20,1,null,null,1,19,42.15542521994135,{"$f":"IFERROR($C$11-SUM($H$16:H27),0)","v":800.95307917888567}]
[null,19,1,null,null,1,18,42.15542521994135,{"$f":"IFERROR($C$11-SUM($H$16:H28),0)","v":758.79765395894435}]
[null,18,1,null,null,1,17,42.15542521994135,{"$f":"IFERROR($C$11-SUM($H$16:H29),0)","v":716.64222873900303}]
[null,17,1,null,null,1,16,42.155425219941357,{"$f":"IFERROR($C$11-SUM($H$16:H30),0)","v":674.48680351906171}]
[null,16,1,null,null,1,15,42.155425219941357,{"$f":"IFERROR($C$11-SUM($H$16:H31),0)","v":632.33137829912039}]
[null,15,1,null,null,1,14,42.155425219941357,{"$f":"IFERROR($C$11-SUM($H$16:H32),0)","v":590.17595307917907}]
[null,14,1,null,null,1,13,42.155425219941364,{"$f":"IFERROR($C$11-SUM($H$16:H33),0)","v":548.02052785923775}]
[null,13,1,null,null,1,12,42.155425219941364,{"$f":"IFERROR($C$11-SUM($H$16:H34),0)","v":505.86510263929642}]
[null,12,1,null,null,1,11,42.155425219941371,{"$f":"IFERROR($C$11-SUM($H$16:H35),0)","v":463.7096774193551}]
[null,11,1,null,1,0,11,0,{"$f":"IFERROR($C$11-SUM($H$16:H36),0)","v":463.7096774193551}]
[null,10,1,null,1,0,10,0,{"$f":"IFERROR($C$11-SUM($H$16:H37),0)","v":463.7096774193551}]
[null,9,1,null,1,0,9,0,{"$f":"IFERROR($C$11-SUM($H$16:H38),0)","v":463.7096774193551}]
[null,8,1,null,1,0,8,0,{"$f":"IFERROR($C$11-SUM($H$16:H39),0)","v":463.7096774193551}]
[null,7,1,null,1,0,7,0,{"$f":"IFERROR($C$11-SUM($H$16:H40),0)","v":463.7096774193551}]
[null,6,1,null,null,1,5,66.244239631336441,{"$f":"IFERROR($C$11-SUM($H$16:H41),0)","v":397.46543778801868}]
[null,5,1,null,null,1,4,79.493087557603729,{"$f":"IFERROR($C$11-SUM($H$16:H42),0)","v":317.97235023041492}]
[null,4,1,null,null,1,3,79.493087557603729,{"$f":"IFERROR($C$11-SUM($H$16:H43),0)","v":238.47926267281116}]
[null,3,1,null,null,1,2,79.493087557603715,{"$f":"IFERROR($C$11-SUM($H$16:H44),0)","v":158.98617511520752}]
[null,2,1,null,null,1,1,79.493087557603758,{"$f":"IFERROR($C$11-SUM($H$16:H45),0)","v":79.493087557603758}]
[null,1,{"$f":"IF(B46<>\"\",1,\"\")","v":1},null,null,{"$f":"IFERROR(IF(B46<>\"\",C46-D46-E46,\"\"),\"\")","v":1},{"$f":"IFERROR(IF(B46<>\"\",B46-F46,\"\"),\"\")","v":0},{"$f":"IFERROR(IF(B46<>\"\",IF(F46=1,I45/G45,0),\"\"),\"\")","v":79.493087557603758},{"$f":"IFERROR(IF(B46<>\"\",$C$11-SUM($H$16:H46),\"\"),\"\")","v":0}]

{"sheet":"COSTOU","index":8,"n_rows":114,"n_cols":4,"rows_kept":114,"cut":false,"hidden":false,"merged":[[111,1,111,3],[112,1,112,3],[113,1,113,3],[105,1,105,2],[106,1,106,2],[107,1,107,2],[108,1,108,2],[109,1,109,2],[110,1,110,2],[104,1,104,2],[93,1,93,2],[94,1,94,2],[95,1,95,2],[96,1,96,2],[97,1,97,2],[98,1,98,2],[99,1,99,2],[100,1,100,2],[101,1,101,2],[102,1,102,2],[103,1,103,2],[92,1,92,2],[81,1,81,2],[82,1,82,2],[83,1,83,2],[84,1,84,2],[85,1,85,2],[86,1,86,2],[87,1,87,2],[88,1,88,2],[89,1,89,2],[90,1,90,2],[91,1,91,2],[80,1,80,2],[69,1,69,2],[70,1,70,2],[71,1,71,2],[72,1,72,2],[73,1,73,2],[74,1,74,2],[75,1,75,2],[76,1,76,2],[77,1,77,3],[78,1,78,2],[79,1,79,2],[68,1,68,2],[56,1,56,2],[57,1,57,2],[58,1,58,2],[59,1,59,2],[60,1,60,2],[61,1,61,2],[62,1,62,2],[63,1,63,2],[64,1,64,2],[66,1,66,2],[67,1,67,2],[65,1,65,2],[37,1,37,2],[38,1,38,2],[39,1,39,2],[27,1,27,2],[55,1,55,2],[44,1,44,2],[45,1,45,2],[46,1,46,2],[47,1,47,2],[48,1,48,2],[49,1,49,2],[50,1,50,2],[51,1,51,2],[52,1,52,2],[53,1,53,2],[54,1,54,2],[16,1,16,3],[17,1,17,3],[18,1,18,3],[19,1,19,3],[20,1,20,3],[3,1,3,3],[6,1,6,3],[5,1,5,3],[14,1,14,3],[15,1,15,3],[43,1,43,2],[33,1,33,2],[34,1,34,2],[35,1,35,2],[23,1,23,3],[24,1,25,2],[40,1,40,3],[41,1,41,2],[42,1,42,2],[26,1,26,3],[28,1,28,2],[29,1,29,2],[30,1,30,2],[31,1,31,2],[32,1,32,2],[36,1,36,2]]}
[]
[null,null,null,"Ir al MENÚ"]
[]
[null,"11. DE LAS ATENCIONES A NO DERECHOHABIENTES.\n11.1 Las personas trabajadoras que presten servicios a través de plataformas digitales consideradas trabajadoras independientes que hayan hecho uso de alguna prestación asociada a la seguridad social, ya sea por cuenta propia o en favor de sus beneficiarios legales, deberá registrarse y cubrir las cuotas obrero patronales a razón de un salario mínimo general de la Ciudad de México, de forma retroactiva como incorporación voluntaria al Régimen Obligatorio como persona trabajadora independiente, sujeto a los tiempos de espera del artículo 83 del RACERF. De lo contrario, se le cobrarán las prestaciones otorgadas como atención a no derechohabiente, conforme a los costos unitarios vigentes. \n\nEn caso de que las prestaciones otorgadas sean solamente prestaciones en especie del seguro de enfermedades y maternidad, el IMSS solicitará a Servicios de Salud del Instituto Mexicano del Seguro Social para el Bienestar (IMSS-Bienestar) el pago por atención a no derechohabiente de las prestaciones otorgadas a la persona trabajadora de plataformas digitales o sus beneficiarios, con base en los convenios que tenga suscrito con dicho organismo público descentralizado."]
[]
[null,"Opciones de incorporación"]
[null,"El importe que te correspondería pagar por tu aseguramiento, con un salario base de cotización diario de $278.8 y una prima de seguro de riesgos de trabajo de 4.65325 es el siguiente:"]
[]
[null,"TIPO DE ASEGURAMIENTO","FECHA DE COBERTURA","PAGO DE CUOTAS OBRERO PATRONALES"]
[null,"Mensual","Del 1 al 31 de Agosto de 2025",2156.98]
[null,"Bimestral","Del 1 de Agosto de 2025 al 30 de Septiembre de 2025",4244.3900000000003]
[null,"Semestral","Del 1 de Agosto de 2025 al 31 de Enero de 2026",12802.68]
[null,"Anual","Del 1 de Agosto de 2025 al 31 de Julio de 2026",25396.57]
[]
[null,"REGLAMENTO DE LA LEY DEL SEGURO SOCIAL EN MATERIA DE AFILIACIÓN, CLASIFICACIÓN DE EMPRESAS, RECAUDACIÓN Y FISCALIZACIÓN."]
[null,"Artículo 83. No se proporcionarán las prestaciones en especie, al asegurado o sus beneficiarios, durante los tiempos y por los padecimientos y tratamientos siguientes:\n\nTIEMPOS: "]
[null,"I. Seis meses: \n\t   Tumoración benigna de mama. "]
[null,"II. Diez meses: \n\t   Parto."]
[null,"III. Un año: \n\na).- Litotripcia. \nb).- Cirugía de padecimientos ginecológicos, excepto neoplasias malignas de útero, ovarios y piso perineal. \nc).- Cirugía de insuficiencia venosa y várices. \nd).- Cirugía de senos paranasales y nariz. \ne).- Cirugía de varicocele. \nf).- Hemorroidectomía y cirugía de fístulas rectales y prolapso de recto. \ng).- Amigdalectomía y adenoidectomía. \nh).- Cirugía de hernias, excepto hernia de disco intervertebral. \nI).- Cirugía de hallux valgas.\nJ).- Cirugía de estrabismo."]
[null,"IV. Dos años: \n   Cirugía ortopédica. "]
[null,"Estos tiempos serán computados a partir de la fecha en que el asegurado y sus beneficiarios queden inscritos ante el Instituto. Transcurridos los mismos podrán hacer uso de las prestaciones en especie respecto de los padecimientos y tratamientos antes señalados. \n\nLa restricción para el otorgamiento de las prestaciones en especie respecto de los padecimientos y tratamientos enunciados en este artículo, no impide que el asegurado o sus beneficiarios hagan uso de dichas prestaciones por otro padecimiento o tratamiento diverso. "]
[]
[null,"D.O.F 13/12/2024"]
[null,"Tabla que contiene los Costos Unitarios por Nivel de Atención Médica actualizados al año 2025, para la determinación de créditos fiscales derivados de capitales constitutivos, inscripciones improcedentes y atención a no derechohabientes."]
[null,"TIPO DE SERVICIO",null,"COSTO UNITARIO ACTUALIZADO AL 2025"]
[null,null,null,"(pesos)"]
[null,"ATENCIÓN EN UNIDADES DE PRIMER NIVEL"]
[null,"Consulta de Medicina Familiar1",null,1296]
[null,"Consulta Dental (Estomatología)",null,942]
[null,"Atención de Urgencias",null,1037]
[null,"Curaciones",null,348]
[null,"Estudio de Laboratorio Clínico",null,116]
[null,"Estudio de Radiodiagnóstico",null,351]
[null,"Traslado en Ambulancia",null,2370]
[null,"Día paciente en Hospitalización",null,15018]
[null,"Consulta/Sesión de Medicina Física y Rehabilitación",null,1864]
[null,"Terapia Psicológica",null,1675]
[null,"Sesión de Diálisis",null,152]
[null,"Prueba rápida de detección de antígenos del virus SARS-CoV-2 (COVID-19)",null,301]
[null,"Prueba RT-PCR de detección de material genético del virus SARS-CoV-2 (COVID-19)",null,1385]
[null,"ATENCIÓN EN UNIDADES DE SEGUNDO NIVEL"]
[null,"Consulta de Medicina Familiar1",null,1296]
[null,"Consulta Dental (Estomatología)",null,942]
[null,"Consulta de Especialidades2",null,1851]
[null,"Atención de Urgencias",null,2642]
[null,"Día Paciente en Hospitalización",null,15018]
[null,"Día Paciente en Incubadora",null,15018]
[null,"Día Paciente en Terapia Intensiva",null,72381]
[null,"Curaciones",null,348]
[null,"Estudio de Laboratorio Clínico",null,139]
[null,"Citología Exfoliativa",null,385]
[null,"Estudio de Medicina Nuclear",null,2169]
[null,"Estudio de Electrodiagnóstico",null,1393]
[null,"Estudio de Radiodiagnóstico",null,531]
[null,"Estudio de Ultrasonografía",null,846]
[null,"Estudio de Tomografía Axial",null,3886]
[null,"Estudio de Resonancia Magnética",null,3900]
[null,"Estudio/Procedimiento de Endoscopía",null,4818]
[null,"Consulta/Sesión de Medicina Física y Rehabilitación",null,1878]
[null,"Sesión de Radioterapia",null,2851]
[null,"Estudio de Anatomía Patológica",null,333]
[null,"Intervención Quirúrgica",null,39851]
[null,"Intervención de Tococirugía",null,22614]
[null,"Traslado en Ambulancia",null,3822]
[null,"Sesión de Quimioterapia",null,4363]
[null,"Sesión de Hemodiálisis",null,3768]
[null,"Estudio/Procedimiento de Hemodinámica",null,67122]
[null,"Terapia Psicológica",null,1675]
[null,"Estudio/Sesión de Gabinete de Tratamiento3",null,303]
[null,"Sesión de Terapia/Reeducación Ocupacional",null,265]
[null,"Servicio de Banco de Sangre",null,356]
[null,"Consulta a Donadores",null,630]
[null,"Sesión de Diálisis",null,152]
[null,"Servicio de Litotripsia",null,7034]
[null,"Prueba rápida de detección de antígenos del virus SARS-CoV-2 (COVID-19)",null,301]
[null,"Prueba RT-PCR de detección de material genético del virus SARS-CoV-2 (COVID-19)",null,1385]
[null,"Día paciente con ventilación mecánica",null,49175]
[null,"ATENCIÓN EN UNIDADES DE TERCER NIVEL"]
[null,"Consulta de Especialidades2",null,2920]
[null,"Atención de Urgencias",null,3857]
[null,"Día Paciente en Hospitalización",null,15018]
[null,"Día Paciente en Incubadora",null,15018]
[null,"Día Paciente en Terapia Intensiva",null,72381]
[null,"Estudio de Laboratorio Clínico",null,246]
[null,"Citología Exfoliativa",null,385]
[null,"Estudio de Medicina Nuclear",null,2169]
[null,"Estudio de Electrodiagnóstico",null,1393]
[null,"Estudio de Radiodiagnóstico",null,681]
[null,"Estudio de Ultrasonografía",null,846]
[null,"Estudios de Tomografía Axial",null,3886]
[null,"Estudios de Resonancia Magnética",null,3900]
[null,"Procedimiento de Cardiología Intervencionista _ Hemodinámica",null,67122]
[null,"Estudio/Procedimiento de Endoscopía",null,4818]
[null,"Consulta/Sesión de Medicina Física y Rehabilitación",null,3661]
[null,"Sesión de Radioterapia",null,2851]
[null,"Sesión de Quimioterapia",null,4363]
[null,"Estudio de Anatomía Patológica",null,543]
[null,"Intervención Quirúrgica",null,46930]
[null,"Intervención de Tococirugía",null,22614]
[null,"Traslado en Ambulancia",null,8974]
[null,"Sesión de Hemodiálisis",null,3768]
[null,"Terapia Psicológica",null,1675]
[null,"Estudio/Sesión de Gabinete de Tratamiento3",null,303]
[null,"Sesión de Terapia/Reeducación Ocupacional",null,265]
[null,"Servicio de Banco de Sangre",null,486]
[null,"Consulta a Donadores",null,630]
[null,"Sesión de Diálisis",null,152]
[null,"Servicio de Litotripsia",null,7034]
[null,"Prueba rápida de detección de antígenos del virus SARS-CoV-2 (COVID-19)",null,301]
[null,"Prueba RT-PCR de detección de material genético del virus SARS-CoV-2 (COVID-19)",null,1385]
[null,"Día paciente con ventilación mecánica",null,49175]
[null,"1.Incluye las Consultas de Salud en el Trabajo en el Primer Nivel de Atención."]
[null,"2.Incluye las Consultas de Salud en el Trabajo en el Segundo y Tercer Nivel de Atención."]
[null,"3.Gabinete de Tratamiento incluye terapias de lenguaje, respiratoria, recreativa, fisiología pulmonar, entre otros tratamientos de gabinete."]

{"sheet":"CFDIE","index":9,"n_rows":7,"n_cols":35,"rows_kept":7,"cut":false,"hidden":false,"merged":[[5,5,5,6],[5,17,5,18],[5,19,5,21],[5,23,5,24]]}
[]
[]
[]
[null,null,null,null,null,"Ir al MENÚ"]
[]
[null,null,null,null,null,"Emisor",null,null,"Receptor",null,null,null,null,null,null,null,null,"Trasladados",null,"Retenciones",null,null,null,"Aerolíneas"]
[null,"Fecha ","Tipo de comprobante","Serie y folio","Folio fiscal","RFC","NOMBRE","Régimen fiscal","RFC","Nombre ","Régimen fiscal","USO","Descripción","Objeto de impuesto","Importe","Descuento","Importe - descuento","IEPS","IVA","ISR","IVA","IEPS","Impuesto sobre hospedaje","TUA","Otros cargos","Total del comprobante","Método de pago","Forma de pago","Moneda","Tipo de cambio","Importe sin convertir","Fecha de cancelación","Tipo de relación","UUID relacionado","Ruta del archivo"]

{"sheet":"RPAGOSE","index":10,"n_rows":7,"n_cols":69,"rows_kept":7,"cut":false,"hidden":false,"merged":[[5,49,5,56],[5,57,5,64],[4,21,4,47],[5,9,5,11],[5,12,5,14],[5,15,5,20],[5,32,5,35],[5,36,5,45],[5,46,5,47]]}
[null,null,null,null,null,null,null,null,null,null,null,null,null,null,null,null,null,null,null,null,null,null,null,null,null,null,null,null,null,null,null,null,null,null,null,null,null,null,null,null,null,null,null,null,null,null,null,null,null,null,null,null,null,null,null,null,null,null,null,null,null,null,null,null,null,""]
[null,"Hoja para importar los XML emitidos con el complemento de recepción de pagos",null,null,null,null,null,null,null,null,null,null,null,null,null,null,null,null,null,null,null,null,null,null,null,null,null,null,null,null,null,null,null,null,null,null,null,null,null,null,null,null,null,null,null,null,null,null,null,null,null,null,null,null,null,null,null,null,null,null,null,null,null,null,null,""]
[null,null,null,null,null,null,null,null,null,null,null,null,null,null,null,null,null,null,null,null,null,null,null,null,null,null,null,null,null,null,null,null,null,null,null,null,null,null,null,null,null,null,null,null,null,null,null,null,null,null,null,null,null,null,null,null,null,null,null,null,null,null,null,null,null,""]
[null,null,null,null,null,null,"Ir al MENÚ",null,null,null,null,null,null,null,null,null,null,null,null,null,null,null,null,null,null,null,null,null,null,null,null,null,null,null,null,null,null,null,null,null,null,null,null,null,null,null,null,null,null,null,null,null,null,null,null,null,null,null,null,null,null,null,null,null,null,""]
[null,null,null,null,null,null,null,null,null,null,null,null,null,null,null,null,null,null,null,null,null,"Complemento de recepción de pagos",null,null,null,null,null,null,null,null,null,null,null,null,null,null,null,null,null,null,null,null,null,null,null,null,null,null,null,null,null,null,null,null,null,null,null,null,null,null,null,null,null,null,null,""]
[null,null,null,null,null,null,null,null,null,"Emisor",null,null,"Receptor",null,null,"Campos generales CFDI ",null,null,null,null,null,null,null,null,null,null,null,null,null,null,null,null,"Solo que el pago se reciba en SPEI",null,null,null,"Documentos que se cobran",null,null,null,null,null,null,null,null,null,"Timbre fiscal del complemento de recepción de pagos",null,null,"Impuestos trasladados",null,null,null,null,null,null,null,"Impuestos retenidos",null,null,null,null,null,null,null,""]
[null,"Fecha de emisión","Folio","Serie","Subtotal","Moneda","Total","Tipo de comprobante","Lugar Expedicion","Rfc","Nombre","Régimen fiscal","RFC receptor","Nombre","Régimen fiscal","ClaveProdServ","Cantidad","Unidad","Descripcion","ValorUnitario","Importe","Fecha de pago","Forma de pago","MonedaP","TipoCambioP","Monto","NumOperacion","RfcEmisorCtaOrd ","NomBancoOrdExt ","CtaOrdenante","RfcEmisorCtaBen ","CtaBeneficiario","TipoCadPago ","CertPago","CadPago","SelloPago","IdDocumento ","Serie","Folio","MonedaDR ","TipoCambioDR","MetodoDePagoDR","NumParcialidad ","ImpSaldoAnt ","ImpPagado ","ImpSaldoInsoluto","Fecha de timbrado","UUID","Objeto de impuestos DR","Base para IEPS","Tipo factor","Tasa o cuota","Total IEPS trasladado del comprobante","Base para IVA","Tipo  factor","Tasa o cuota","Total IVA trasladado del comprobante","Base retención ISR","Tipo factor","Tasa o cuota","Retención de ISR","Base retención IVA","Tipo factor","Tasa o cuota","Retención IVA","USO del CFDI","Base de ISR","Ruta del archivo","Fecha de cancelación"]

{"sheet":"CFDIR","index":11,"n_rows":7,"n_cols":35,"rows_kept":7,"cut":false,"hidden":false,"merged":[[5,5,5,7],[5,8,5,11],[5,17,5,18],[5,19,5,21],[5,23,5,24]]}
[]
[]
[]
[null,null,null,null,null,"Ir al MENÚ"]
[]
[null,null,null,null,null,"Emisor",null,null,"Receptor",null,null,null,null,null,null,null,null,"Trasladados",null,"Retenciones",null,null,null,"Aerolíneas"]
[null,"Fecha ","Tipo de comprobante","Serie y folio","Folio fiscal","RFC","NOMBRE","Régimen fiscal","RFC","Nombre ","Régimen fiscal","USO","Descripción","Objeto de impuesto","Importe","Descuento","Importe - descuento","IEPS","IVA","ISR","IVA","IEPS","Impuesto sobre hospedaje","TUA","Otros cargos","Total del comprobante","Método de pago","Forma de pago","Moneda","Tipo de cambio","Importe sin convertir","Fecha de cancelación","Tipo de relación","UUID relacionado","Ruta"]

{"sheet":"RPAGOSR","index":12,"n_rows":7,"n_cols":69,"rows_kept":7,"cut":false,"hidden":false,"merged":[[5,49,5,56],[5,57,5,64],[4,21,4,47],[5,9,5,11],[5,12,5,14],[5,15,5,20],[5,32,5,35],[5,36,5,45],[5,46,5,47]]}
[null,null,null,null,null,null,null,null,null,null,null,null,null,null,null,null,null,null,null,null,null,null,null,null,null,null,null,null,null,null,null,null,null,null,null,null,null,null,null,null,null,null,null,null,null,null,null,null,null,null,null,null,null,null,null,null,null,null,null,null,null,null,null,null,null,""]
[null,"Hoja para importar los XML emitidos con el complemento de recepción de pagos",null,null,null,null,null,null,null,null,null,null,null,null,null,null,null,null,null,null,null,null,null,null,null,null,null,null,null,null,null,null,null,null,null,null,null,null,null,null,null,null,null,null,null,null,null,null,null,null,null,null,null,null,null,null,null,null,null,null,null,null,null,null,null,""]
[null,null,null,null,null,null,null,null,null,null,null,null,null,null,null,null,null,null,null,null,null,null,null,null,null,null,null,null,null,null,null,null,null,null,null,null,null,null,null,null,null,null,null,null,null,null,null,null,null,null,null,null,null,null,null,null,null,null,null,null,null,null,null,null,null,""]
[null,null,null,null,null,null,"Ir al MENÚ",null,null,null,null,null,null,null,null,null,null,null,null,null,null,null,null,null,null,null,null,null,null,null,null,null,null,null,null,null,null,null,null,null,null,null,null,null,null,null,null,null,null,null,null,null,null,null,null,null,null,null,null,null,null,null,null,null,null,""]
[null,null,null,null,null,null,null,null,null,null,null,null,null,null,null,null,null,null,null,null,null,"Complemento de recepción de pagos",null,null,null,null,null,null,null,null,null,null,null,null,null,null,null,null,null,null,null,null,null,null,null,null,null,null,null,null,null,null,null,null,null,null,null,null,null,null,null,null,null,null,null,""]
[null,null,null,null,null,null,null,null,null,"Emisor",null,null,"Receptor",null,null,"Campos generales CFDI ",null,null,null,null,null,null,null,null,null,null,null,null,null,null,null,null,"Solo que el pago se reciba en SPEI",null,null,null,"Documentos que se cobran",null,null,null,null,null,null,null,null,null,"Timbre fiscal del complemento de recepción de pagos",null,null,"Impuestos trasladados",null,null,null,null,null,null,null,"Impuestos retenidos",null,null,null,null,null,null,null,""]
[null,"Fecha de emisión","Folio","Serie","Subtotal","Moneda","Total","Tipo de comprobante","Lugar Expedicion","Rfc","Nombre","Régimen fiscal","RFC receptor","Nombre","Régimen fiscal","ClaveProdServ","Cantidad","Unidad","Descripcion","ValorUnitario","Importe","Fecha de pago","Forma de pago","MonedaP","TipoCambioP","Monto","NumOperacion","RfcEmisorCtaOrd ","NomBancoOrdExt ","CtaOrdenante","RfcEmisorCtaBen ","CtaBeneficiario","TipoCadPago ","CertPago","CadPago","SelloPago","IdDocumento ","Serie","Folio","MonedaDR ","TipoCambioDR","MetodoDePagoDR","NumParcialidad ","ImpSaldoAnt ","ImpPagado ","ImpSaldoInsoluto","Fecha de timbrado","UUID","Objeto de impuestos DR","Base para IEPS","Tipo factor","Tasa o cuota","Total IEPS trasladado del comprobante","Base para IVA","Tipo  factor","Tasa o cuota","Total IVA trasladado del comprobante","Base retención ISR","Tipo factor","Tasa o cuota","Retención de ISR","Base retención IVA","Tipo factor","Tasa o cuota","Retención IVA","USO del CFDI","Base de ISR","Ruta del archivo","Fecha de cancelación"]

{"sheet":"NOMINA","index":13,"n_rows":5,"n_cols":72,"rows_kept":5,"cut":false,"hidden":false,"merged":[[3,51,3,52],[3,53,3,56],[3,57,3,61],[3,62,3,66],[3,67,3,69]]}
[]
[null,null,null,null,null,null,null,null,"Ir al MENÚ"]
[]
[null,null,null,null,null,null,null,null,null,null,null,null,null,null,null,null,null,null,null,null,null,null,null,null,null,null,null,null,null,null,null,null,null,null,null,null,null,null,null,null,null,null,null,null,null,null,null,null,null,null,null,"Vanta acciones",null,"Tiempo extra",null,null,null,"Jubilaciones, pensiones, retiro",null,null,null,null,"Pagos por separación",null,null,null,null,"Incapacidades"]
[null,"Fecha de emisión","Fecha de timbrado","UUID","Concepto","Serie","Folio","Forma de pago","Metodo de pago","Moneda","Registro patronal","Nombre del patron","Riesgo de puesto","Concepto riesgo de puesto (este dato no pertenece al XML)","No. De empleado","Nombre del empleado","Departamento","Puesto","Clave de la entidad federrativa","Estado (este dato no pertenece al XML)","CURP","RFC","No. SS","Fecha inicio relación laboral","Salario diario integrado","Salario base de cotización","Tipo de regimen","Tipo de régimen (este dato no pertenece al XML)","Tipo de jornada","Tipo de jornada (este dato no pertenece al XML)","Tipo de contrato","Tipo de contrato (este dato no pertenece al XML)","Antigüedad","Fecha inicial pago","Fecha final pago","Fecha de pago","Periodicidad de pago","Periodicidad de pago  (este dato no pertenece al XML)","Clave de percepción","Percepción","Percepción de acuerdo al catálogo del SAT  (este dato no pertenece al XML)","Percepción exenta","Percepción gravado","Clave de deducción","Deducción","Deducción de acuerdo al catálogo del SAT  (este dato no pertenece al XML)","Importe deducción","Total del comprobante","Tipo de relación","UUID tipo de relación","Subsidio al empleo causado","Valor de mercado","Precio al otorgarse","Días","Tipo de horas","Horas extras","Importe pagado","Total en una sola exhibición","Total parcialidad","Monto diario","Ingreso acumulable","Ingreso no acumulable","Total pagado","No. de años de servicio","Último sueldo mensual ordinario","Ingreso acumulable","Ingreso no acumulable","Días de incapacidad","Tipo de incapacidad","Importe monetario","Dìas pagados","Ruta"]

{"sheet":"PP PFAEP","index":14,"n_rows":130,"n_cols":15,"rows_kept":130,"cut":false,"hidden":false,"merged":[[31,1,46,1],[58,1,59,1]]}
[0]
[null,"Determinación del pago provisional de persona física actividad empresarial y profesional"]
[]
[null,null,"Año de cálculo",null,null,null,null,null,"Ir al MENÚ"]
[null,null,"Régimen fiscal"]
[null,null,"Régimen fiscal"]
[null,null,"INGRESOS","Enero","Febrero","Marzo","Abril","Mayo","Junio","Julio","Agosto","Septiembre","Octubre","Noviembre","Diciembre"]
[null,null,"Ingresos acumulables"]
[null,null,"CFDI emitidos de tipo ingreso con método de pago PUE"]
[null,null,"CFDI emitidos con complemento de pago"]
[null,"Este campo no forma parte del aplicativo","CFDI de tipo ingreso con método de pago PUE y tipo de relación 04 (sustitución de CFDI previos)"]
[null,null,"(-) Ingresos a disminuir del mes"]
[null,null,"IEPS / ISAN cobrado no trasladado de manera expresa y por separado"]
[null,null,"Ingresos facturados en los que se determinó ganancia por enajenación"]
[null,null,"Ingresos facturados pendientes de cancelación con aceptación del receptor"]
[null,null,"Ingresos facturados en los que se determinó ganancia por fluctuación cambiaria"]
[null,null,"Ingresos de personas físicas dedicadas a las artes plásticas"]
[null,null,"(+) Ingresos adicionales del mes"]
[null,null,"Condonaciones, quitas o remisiones"]
[null,null,"Gastos por cuenta de tercersos sin comprobante fiscal"]
[null,null,"Intereses cobrados derivados de la actividad empresarial o de la prestación de servicios profesionales"]
[null,null,"Ganancia por enajenación de activos"]
[null,null,"Ganancia efectivamente percibida por fluctuación cambiaria"]
[null,null,"Ingresos derivados de las actividades de autotransporte (integrantes de coordinados)"]
[null,null,"(-) Ingresos exentos"]
[null,null,"(=) INGRESOS DEL MES"]
[null,null,"INGRESOS DE MESES ANTERIORES"]
[null,null,"(=) TOTAL DE INGRESOS DEL PERIODO"]
[]
[null,null,"DEDUCCIONES AUTORIZADAS"]
[null,null,"Gastos de nómina del periodo no considerados en el prellenado"]
[null,"No forma parte del aplicativo","Salarios y asimilados a salarios gravados"]
[null,null,"(-) PTU pagada"]
[null,null,"(-) Víaticos"]
[null,null,"(-) Ajuste a gravados"]
[null,null,"Total de sueldos gravados"]
[null,null,"Salarios y asimilados a salarios exentos"]
[null,null,"(-) PTU pagada"]
[null,null,"(-) Víaticos"]
[null,null,"(-) Ajuste a Exento"]
[null,null,"Total de sueldos exentos"]
[null,null,"(x) Factor de no deducibles"]
[null,null,"(=) Nómina no deducible de los exentos"]
[null,null,"Impuesto sobre nómina"]
[null,null,"Cuotas obrero patronales"]
[null,null,"INFONAVIT"]
[null,null,"Otros"]
[]
[null,null,"(+) Compras y gastos facturados del mes"]
[0,null,"CFDI recibidos con método de pago PUE, bancarizados con clave de uso G01"]
[null,"Este campo no forma parte del aplicativo","CFDI de tipo ingreso recibidos con método de pago PUE , bancarizado y clave de uso G01 y tipo de relación 04 (sustitución de CFDI previos)"]
[0,null,"CFDI recibidos con método de pago PUE bancarizados con clave de uso G03"]
[null,"Este campo no forma parte del aplicativo","CFDI de tipo ingreso recibidos con método de pago PUE , bancarizado y clave de uso G03 y tipo de relación 04 (sustitución de CFDI previos)"]
[null,null,"CFDI recibidos con complemento de pago, bancarizados con clave de uso G01"]
[null,null,"CFDI recibidos con complemento de pago, bancarizados con clave de uso G03"]
[null,null,"(+) Devoluciones, descuentos y bonificaciones facturadas del mes"]
[null,null,"(-) Compras y gastos no deducibles del mes"]
[null,null,"(+) Compras y gastos del mes no considerados en el pre llenado"]
[null,"Este campo no forma parte del aplicativo","CFDI recibidos de tipo ingreso con método de pago PUE no bancarizados y clave de uso diferente a G01 y G03"]
[null,null,"CFDI recibidos con complemento de pago, diferente a bancarizados con clave de uso diferente a G01 y G03"]
[null,null,"(-) Facturas de egresos recibidas por compras y gastos del mes"]
[null,null,"(=) Compras y gasto del mes"]
[null,null,"(+) Deducción de inversiones"]
[null,null,"(+) Deducción inmeditata de inversiones"]
[null,null,"(=) TOTAL DE DEDUCCIONES AUTORIZADAS DEL MES"]
[null,null,"TOTAL DE DEDUCCIONES DE MESES ANTERIORES"]
[null,null,"(=) TOTAL DE DEDUCCIONES AUTORIZADAS DEL PERIODO"]
[null,null,"(+) Facilidades administrativas o estímulos por aplicar"]
[null,null,"Estímulo por cantratar adultos mayores (25% del salario pagado)"]
[null,null,"Deducción del 25% del salario pagado por la contratqación de personas que padezcan discapacidad"]
[null,null,"Deducción adicional por enajenación de libros, periódicos y revistas"]
[null,null,"Deducción dquivalente hata 8% de ingresos propios sin documentación que reúna requisitos fiscales para contribuyentes dedicadas exclusivamente al autotransporte"]
[null,null,"Deducción del costo de adquisición de terrenos por contribuyentes dedicados a la construcci´n y desarrollos inmobiliarios"]
[null,null,"Deducción de donativos realizados a organismos públicos descentralizados del Gobierno Federal"]
[null,null,"Total de deducciones autorizadas"]
[]
[null,null,"DETERMINACIÓN"]
[null,null,"Total de ingresos del periodo"]
[null,null,"Total de deducciones autorizadas"]
[null,null,"(-) PTU pagada"]
[null,null,"(-) Pérdidas fiscales de ejercicios anetriores que se aplican en el periodo"]
[null,null,"(=) Base gravable"]
[null,null,"Impuesto causado"]
[null,null,"(-) Estímulos por aplicar"]
[null,null,"Producción cinematográfica"]
[null,null,"Estímulo a proyectos de inversión en las artes"]
[null,null,"Crédito IEPS diéses automotriz para transporte público de personas"]
[null,null,"Crédito IEPS diéses automotriz para transporte público de carga"]
[null,null,"Crédito IEPS diéses automotriz para transporte público de trurístico"]
[null,null,"Crédito 50% en el pago de peaje para trnansporte público de personas"]
[null,null,"Crédito 50% en el pago de peaje para trnansporte público de carga"]
[null,null,"Crédito 50% en el pago de peaje para trnansporte público de trurístico"]
[null,null,"(=) Impuesto del periodo"]
[null,null,"(-) Pagos provisionales efectuados con anterioridas"]
[null,null,"Impuesto a cargo"]
[null,null,"Estatus"]
[null,null,"No. de operación de la declaración"]
[null,null,"Fecha de presentación de la declaración"]
[null,null,"(-) Total de ISR retenido"]
[null,null,"ISR retenido"]
[null,null,"Estatus"]
[null,null,"No. de operación de la declaración"]
[null,null,"Fecha de presentación de la declaración"]
[null,null,"ISR retenido de meses anetriores, solo declraciones pagadas"]
[null,null,"ISR retenido del mes"]
[null,null,"(=) Impuesto a cargo"]
[]
[null,null,"PAGO"]
[null,null,"A cargo"]
[null,null,"(-) Subsidio para el empleo"]
[null,null,"(-) Compensaciones"]
[null,null,"Tipo"]
[null,null,"Periodicidad"]
[null,null,"Periodo"]
[null,null,"Ejercicio"]
[null,null,"Fecha de causación (dd-mm-aaaa)"]
[null,null,"No. de operación"]
[null,null,"Concepto"]
[null,null,"Tipo de declaración"]
[null,null,"No. de operación"]
[null,null,"Monto del saldo a favor original"]
[null,null,"Fecha en que se preentó la declaración del saldo a favor (dd-mm-aaaa)"]
[null,null,"Remanente histórico antes de la aplicación"]
[null,null,"Remanente actualizado antes de la aplicación"]
[null,null,"(-) Estímulos al impuesto a cargo"]
[null,null,"Total de aplicaciones"]
[]
[null,null,"Total de contribuciones"]
[null,null,"(-) Total de aplicaciones"]
[null,null,"(=) Cantidad a cargo"]

{"sheet":"PP PLATA","index":15,"n_rows":37,"n_cols":15,"rows_kept":37,"cut":false,"hidden":false,"merged":[[1,1,1,4],[15,1,15,3],[26,1,26,3]]}
[]
[null,"Pago provisional servicio de transporte terrestre de personas y entrega de bienes",null,null,null,null,null,null,"Ir al MENÚ"]
[]
[null,null,null,"Enero","Febrero","Marzo","Abril","Mayo","Junio","Julio","Agosto","Septiembre","Octubre","Noviembre","Diciembre"]
[null,null,"Ingresos obtenidos mediante intermediarios por servicios terrestres de pasajeros"]
[null,"(+)","Ingresos obtenidos mediante intermediarios por entrega de bienes"]
[null,"(+)","Ingresos obtenidos directamente del usuario por servicios terrestres de pasajeros"]
[null,"(+)","Ingresos obtenidos directamente del usuario por entrega de bienes"]
[null,"(=)","Ingresos totales del mes",{"$f":"IFERROR(SUM(D5:D8),0)","v":0},{"$f":"IFERROR(SUM(E5:E8),0)","v":0},0,0,0,0,0,0,0,0,0,0]
[null,"(x)","Tasa %",2.1000000000000001E-2,2.1000000000000001E-2,2.1000000000000001E-2,2.1000000000000001E-2,2.1000000000000001E-2,2.1000000000000001E-2,2.1000000000000001E-2,2.1000000000000001E-2,2.1000000000000001E-2,2.1000000000000001E-2,2.1000000000000001E-2,2.1000000000000001E-2]
[null,"(=)","ISR causado",{"$f":"IFERROR(ROUND(D9*D10,0),0)","v":0},{"$f":"IFERROR(ROUND(E9*E10,0),0)","v":0},0,0,0,0,0,0,0,0,0,0]
[null,"(-)","Retenciones por platafomras tecnológicas"]
[null,"(=)","ISR a cargo",{"$f":"IFERROR(IF(D11>=D12,ROUND(D11-D12,0),0),0)","v":0},{"$f":"IFERROR(IF(E11>=E12,ROUND(E11-E12,0),0),0)","v":0},0,0,0,0,0,0,0,0,0,0]
[]
[]
[null,"Servicio de hospedaje"]
[null,null,null,"Enero","Febrero","Marzo","Abril","Mayo","Junio","Julio","Agosto","Septiembre","Octubre","Noviembre","Diciembre"]
[null,null,"Ingresos obtenidos mediante intermediarios"]
[null,"(+)","Ingresos obtenidos directamente del usuario"]
[null,"(=)","Ingresos totales del mes",{"$f":"IFERROR(SUM(D18:D19),0)","v":0},{"$f":"IFERROR(SUM(E18:E19),0)","v":0},0,0,0,0,0,0,0,0,0,0]
[null,"(x)","Tasa %",0.04,0.04,0.04,0.04,0.04,0.04,0.04,0.04,0.04,0.04,0.04,0.04]
[null,"(=)","ISR causado",{"$f":"IFERROR(ROUND(D20*D21,0),0)","v":0},{"$f":"IFERROR(ROUND(E20*E21,0),0)","v":0},0,0,0,0,0,0,0,0,0,0]
[null,"(-)","Retenciones por platafomras tecnológicas"]
[null,"(=)","ISR a cargo",{"$f":"IFERROR(IF(D22>=D23,ROUND(D22-D23,0),0),0)","v":0}]
[]
[]
[null,"Enajenación de bienes y/o prestación de servicios"]
[null,null,null,"Enero","Febrero","Marzo","Abril","Mayo","Junio","Julio","Agosto","Septiembre","Octubre","Noviembre","Diciembre"]
[null,null,"Ingresos obtenidos mediante intermediarios por enajenación de bienes"]
[null,"(+)","Ingresos obtenidos mediante intermediarios por prestación de servicios"]
[null,"(+)","Ingresos obtenidos directamente del usuario por enajenación de bienes"]
[null,"(+)","Ingresos obtenidos directamente del usuario por prestación de servicios"]
[null,"(=)","Ingresos totales del mes",{"$f":"IFERROR(SUM(D29:D32),0)","v":0},{"$f":"IFERROR(SUM(E29:E32),0)","v":0},0,0,0,0,0,0,0,0,0,0]
[null,"(x)","Tasa %",0.01,0.01,0.01,0.01,0.01,0.01,0.01,0.01,0.01,0.01,0.01,0.01]
[null,"(=)","ISR causado",{"$f":"IFERROR(ROUND(D33*D34,0),0)","v":0},{"$f":"IFERROR(ROUND(E33*E34,0),0)","v":0},0,0,0,0,0,0,0,0,0,0]
[null,"(-)","Retenciones por platafomras tecnológicas"]
[null,"(=)","ISR a cargo",{"$f":"IFERROR(IF(D35>=D36,ROUND(D35-D36,0),0),0)","v":0},{"$f":"IFERROR(IF(E35>=E36,ROUND(E35-E36,0),0),0)","v":0},0,0,0,0,0,0,0,0,0,0]

{"sheet":"IVA","index":16,"n_rows":162,"n_cols":15,"rows_kept":162,"cut":false,"hidden":false,"merged":[]}
[]
[null,"Determinación del pago mensual de IVA persona física actividad empresarial y profesional, arrendamiento de inmuebles",null,null,null,null,null,null,"Ir al MENÚ"]
[]
[null,null,"Año de cálculo",2025]
[]
[null,null,"IVA A CARGO","Enero","Febrero","Marzo","Abril","Mayo","Junio","Julio","Agosto","Septiembre","Octubre","Noviembre","Diciembre"]
[null,null,"Valor de los actos o actividades gravados a la tasa del 8%",{"$f":"IFERROR(D12,0)","v":0},{"$f":"IFERROR(E12,0)","v":0},0,0,0,0,0,0,0,0,0,0]
[null,null,"CFDI emitidos de tipo ingreso con método de pago PUE règimen 612"]
[null,null,"CFDI emitidos con complemento de pago règimen 612"]
[null,null,"CFDI emitidos de tipo ingreso con método de pago PUE règimen 625"]
[null,null,"CFDI emitidos con complemento de pago règimen 625"]
[null,null,"Monto por detallar",{"$f":"IFERROR(ROUND(SUMIF(D8:D9,\">0\"),0),0)","v":0},{"$f":"IFERROR(ROUND(SUMIF(E8:E9,\">0\"),0),0)","v":0},0,0,0,0,0,0,0,0,0,0]
[null,null,"Intereses cobrados a la tasa del 8%"]
[null,null,"Regalías entre partes relacionadas a la tasa del 8%"]
[null,null,"Otros actos o actividades gravados a la tasa del 8%"]
[]
[null,null,"Valor de los actos o actividades gravados a la tasa del 16%",{"$f":"IFERROR(D22,0)","v":0},{"$f":"IFERROR(E22,0)","v":0},0,0,0,0,0,0,0,0,0,0]
[null,null,"CFDI emitidos de tipo ingreso con método de pago PUE règimen 612"]
[null,null,"CFDI emitidos con complemento de pago règimen 612"]
[null,null,"CFDI emitidos de tipo ingreso con método de pago PUE règimen 625"]
[null,null,"CFDI emitidos con complemento de pago règimen 625"]
[null,null,"Monto por detallar",{"$f":"IFERROR(ROUND(SUMIF(D18:D21,\">0\"),0),0)","v":0},{"$f":"IFERROR(ROUND(SUMIF(E18:E21,\">0\"),0),0)","v":0},0,0,0,0,0,0,0,0,0,0]
[null,null,"Intereses cobrados a la tasa del 16%"]
[null,null,"Regalías entre partes relacionadas a la tasa del 16%"]
[null,null,"Otros actos o actividades gravados a la tasa del 16%"]
[]
[null,null,"Valor de los actos o actividades gravados a la tasa del 0% exportación"]
[]
[null,null,"Valor de los actos o actividades gravados a la tasa del 0% otros",{"$f":"SUM(D30:D31)","v":0},{"$f":"SUM(E30:E31)","v":0},0,0,0,0,0,0,0,0,0,0]
[null,null,"CFDI emitidos de tipo ingreso con método de pago PUE règimen 612"]
[null,null,"CFDI emitidos con complemento de pago règimen 612"]
[null,null,"CFDI emitidos de tipo ingreso con método de pago PUE règimen 625"]
[null,null,"CFDI emitidos con complemento de pago règimen 625"]
[null,null,"Monto por detallar",{"$f":"IFERROR(ROUND(SUMIF(D30:D33,\">0\"),0),0)","v":0},{"$f":"IFERROR(ROUND(SUMIF(E30:E33,\">0\"),0),0)","v":0},0,0,0,0,0,0,0,0,0,0]
[null,null,"Actividades agrícolas, ganaderas, silvícola o pesqueras a la tasa del 0%"]
[null,null,"Otros actos o actividades gravados a la tasa del 0%"]
[]
[null,null,"Suma de los actos o actividades gravados",{"$f":"IFERROR(D7+D17+D27+D29,0)","v":0},{"$f":"IFERROR(E7+E17+E27+E29,0)","v":0},0,0,0,0,0,0,0,0,0,0]
[]
[null,null,"Valor de los actos o actividades por los que no se deba pagar el impuesto (exentos)",{"$f":"SUM(D41:D42)","v":0},{"$f":"SUM(E41:E42)","v":0},0,0,0,0,0,0,0,0,0,0]
[null,null,"CFDI emitidos de tipo ingreso con método de pago PUE règimen 612"]
[null,null,"CFDI emitidos con complemento de pago règimen 612"]
[null,null,"CFDI emitidos de tipo ingreso con método de pago PUE règimen 625"]
[null,null,"CFDI emitidos con complemento de pago règimen 625"]
[null,null,"Monto por detallar",{"$f":"IFERROR(ROUND(SUMIF(D41:D44,\">0\"),0),0)","v":0},{"$f":"IFERROR(ROUND(SUMIF(E41:E44,\">0\"),0),0)","v":0},0,0,0,0,0,0,0,0,0,0]
[null,null,"Enajenación de suelo y construcciones adheridas al suelo, destinadas o utilizadas para casa habitación"]
[null,null,"Enajenación de libros, periódicos y revistas (no editados por el contribuyente)"]
[null,null,"Regalías cobradas por autores"]
[null,null,"Enajenación de bienes muebles usados, excepto los enajenados por empresas"]
[null,null,"Enajenación de billetes y demás comprobantes de loterías, rifas, sorteos o juegos con apuestas y concursos de toda clase"]
[null,null,"Servicios de enseñanza"]
[null,null,"Servicio de transporte público terrestre de personas"]
[null,null,"Operaciones financieras derivadas"]
[null,null,"Venta de boletos para espectáculos públicos"]
[null,null,"Servicios profesionales de medicina"]
[null,null,"Uso o goce temporal de inmuebles para casa habitación y por fincas para fines agrícolas o ganaderos"]
[null,null,"Otros ingresos exentos de IVA"]
[]
[null,null,"Valor de los actos o actividades no objeto del impuesto"]
[]
[null,null,"IVA a cargo a la tasa del 8%",{"$f":"IFERROR(ROUND(D7*0.08,2),0)","v":0},{"$f":"IFERROR(ROUND(E7*0.08,2),0)","v":0},0,0,0,0,0,0,0,0,0,0]
[null,null,"IVA a cargo a la tasa del 16%",{"$f":"IFERROR(ROUND(D17*0.16,2),0)","v":0},{"$f":"IFERROR(ROUND(E17*0.16,2),0)","v":0},0,0,0,0,0,0,0,0,0,0]
[null,null,"Cantidad actualizada a reintegrarse derivada del ajuste"]
[null,null,"Total de IVA a cargo",{"$f":"IFERROR(D61+D62+D63,0)","v":0},{"$f":"IFERROR(E61+E62+E63,0)","v":0},0,0,0,0,0,0,0,0,0,0]
[]
[null,null,"IVA ACREDITABLE"]
[null,null,"Monto de los actos o actividades pagadas"]
[null,null,"Valor de los actos o actividades pagados a la tasa del 8% ",{"$f":"IFERROR(ROUND(D70+D71+D73+D74,0),0)","v":0},0,0,0,0,0,0,0,0,0,0,0]
[null,null,"CFDI recibidos con método de pago PUE bancarizados"]
[null,null,"Con clave de uso G01 (Adquisición de mercancía)"]
[null,null,"Con clave de uso G03 (Gastos en general)"]
[null,null,"CFDI recibidos con complemento de pago"]
[null,null,"Con clave de uso G01 (Adquisición de mercancía)"]
[null,null,"Con clave de uso G03 (Gastos en general)"]
[null,null,"Detalle del valor de los actos o catividades pagados a la tasa del 16%"]
[null,null,"Monto a detallar",{"$f":"IFERROR(ROUND(D69+D71+D73+D74,0),0)","v":0},0,0,0,0,0,0,0,0,0,0,0]
[null,null,"Intereses pagados a la tasa del 8%"]
[null,null,"Regalias pagadas entre partes relacionadas a la tasa del 8%"]
[null,null,"Otros actos o actividades pagados a la tasa del 8%"]
[null,null,"Valor de los actos o actividades pagados a la tasa del 16% ",{"$f":"IFERROR(ROUND(D82+D83+D85+D86,0),0)","v":0},0,0,0,0,0,0,0,0,0,0,0]
[null,null,"CFDI recibidos con método de pago PUE bancarizados"]
[null,null,"Con clave de uso G01 (Adquisición de mercancía)"]
[null,null,"Con clave de uso G03 (Gastos en general)"]
[null,null,"CFDI recibidos con complemento de pago"]
[null,null,"Con clave de uso G01 (Adquisición de mercancía)"]
[null,null,"Con clave de uso G03 (Gastos en general)"]
[null,null,"Detalle del valor de los actos o catividades pagados a la tasa del 16%"]
[null,null,"Monto a detallar",{"$f":"IFERROR(ROUND(D81+D83+D85+D86,0),0)","v":0},0,0,0,0,0,0,0,0,0,0,0]
[null,null,"Intereses pagados a la tasa del 8%"]
[null,null,"Regalias pagadas entre partes relacionadas a la tasa del 8%"]
[null,null,"Otros actos o actividades pagados a la tasa del 8%"]
[null,null,"Valor de los actos o actividades pagados en la importación de bienes y servicios a la tasa del 16% de IVA"]
[null,null,"Monto por detallar",{"$f":"D92","v":0},{"$f":"E92","v":0},0,0,0,0,0,0,0,0,0,0]
[null,null,"Importación de bienes intangibles a la tasa del 16%"]
[null,null,"Importación de uso o goce temporal de bienes intangibles a la tasa del 16%"]
[null,null,"Importación de servicios a la tasa del 16%"]
[null,null,"Otros actos o actividades pagados en la importación de bienes y servicios a la tasa del 16%"]
[null,null,"Valor de los demás actos o actividades pagados a la tasa del 0% de IVA"]
[null,null,"Valor de los actos o actividades pagados por los que no se pagará el IVA (exentos)"]
[null,null,"Monto por detallar",{"$f":"SUM(D101:D110)","v":0},{"$f":"SUM(E101:E110)","v":0},0,0,0,0,0,0,0,0,0,0]
[null,null,"Adquisición de suelo y construcciones adheridas al suelo, destinadas o utilizadas para casa habitación"]
[null,null,"Adquisición de libros, periódicos o revistas (No editados por el contribuyente)"]
[null,null,"Regalías pagadas a los autores"]
[null,null,"Adquisición de bienes muebles usados excepto los adquiridos de empresas"]
[null,null,"Servicio de transporte público terrestre de personas"]
[null,null,"Servicios profesionales de medicina"]
[null,null,"Aseguramiento contra riesgos agropecuarios"]
[null,null,"Uso o goce temporal de fincas para fines agrícolas o ganaderos"]
[null,null,"Actos o actividades pagados en la importación de bienes y servicios exentos"]
[null,null,"Otros actos o actividades pagados exentos"]
[]
[null,null,"Determinación del Impuesto al Valor Agregado acreditable"]
[null,null,"IVA de actos o actividades pagados a la tasa del 8%",{"$f":"IFERROR(ROUND(D68*0.08,0),0)","v":0},0,0,0,0,0,0,0,0,0,0,0]
[null,null,"IVA de actos o actividades pagados a la tasa del 16%",{"$f":"IFERROR(ROUND(D80*0.16,0),0)","v":0},0,0,0,0,0,0,0,0,0,0,0]
[null,null,"IVA de actos o actividades pagados en la importación de bienes y servicios a la tasa del 16%",{"$f":"IFERROR(ROUND(D98*0.16,0),0)","v":0},{"$f":"IFERROR(ROUND(E98*0.16,0),0)","v":0},0,0,0,0,0,0,0,0,0,0]
[null,null,"IVA trasladado al contribuyente (efectivamente pagado)",{"$f":"SUM(D113:D115)","v":0},{"$f":"SUM(E113:E115)","v":0},0,0,0,0,0,0,0,0,0,0]
[null,null,"Total de IVA acreditable por actividades gravadas a la tasa del 16%, 8% y 0%"]
[null,null,"Total de iva trasladado al contribuyente (efectivamente pagado)",{"$f":"D116","v":0},{"$f":"E116","v":0},0,0,0,0,0,0,0,0,0,0]
[null,null,"Total de IVA acreditable por importación para realizar actos o actividades por los que no están obligados al pago del impuesto"]
[null,null,"IVA correspondiente a actos o actividades por los que no se está obligado al pago del impuesto"]
[null,null,"IVA pagado utilizado indistintamente para realizar actos o actividades gravados y actos o actividades por los que no se está obligado al pago del impuesto",{"$f":"IFERROR(D118-D120,0)","v":0},{"$f":"IFERROR(E118-E120,0)","v":0},0,0,0,0,0,0,0,0,0,0]
[null,null,"Selecciona la proporción de IVA que aplicarás"]
[null,null,"Proporción de IVA"]
[null,null,"IVA acreditable de bienes utilizados indistintamente para realizar actos o actividades gravados y actos o actividades por los que no se está obligado al pago del impuesto",{"$f":"IFERROR(ROUND(D121*D123,0),0)","v":0},{"$f":"IFERROR(ROUND(E121*E123,0),0)","v":0},0,0,0,0,0,0,0,0,0,0]
[null,null,"IVA acreditable",{"$f":"D124","v":0},{"$f":"E124","v":0},0,0,0,0,0,0,0,0,0,0]
[null,null,"Monto acreditable actualizado a incrementar derivado del ajuste"]
[null,null,"Total de IVA acreditable",{"$f":"SUM(D125:D126)","v":0},{"$f":"SUM(E125:E126)","v":0},0,0,0,0,0,0,0,0,0,0]
[]
[null,null,"DETERMINACIÓN"]
[null,null,"Total de IVA a cargo",{"$f":"IFERROR(ROUND(D64,0),0)","v":0},0,0,0,0,0,0,0,0,0,0,0]
[null,null,"(-) IVA retenido"]
[null,null,"Monto por detallar",{"$f":"D131","v":0},{"$f":"E131","v":0},0,0,0,0,0,0,0,0,0,0]
[null,null,"Por enajenación de bienes"]
[null,null,"Por otras operaciones"]
[null,null,"Total de IVA acreditable",{"$f":"IFERROR(ROUND(D127,0),0)","v":0},{"$f":"IFERROR(ROUND(E127,0),0)","v":0},0,0,0,0,0,0,0,0,0,0]
[null,null,"Otras cantidades a cargo del contribuyente"]
[null,null,"Otras cantidades a favor del contribuyente"]
[null,null,"Cantidad a cargo",{"$f":"IFERROR(IF((D130+D136)>=(D135+D137),ROUND(D130+D136-D135-D137,0),\"\"),\"\")","v":0},{"$f":"IFERROR(IF((E130+E136)>=(E135+E137),ROUND(E130+E136-E135-E137,0),\"\"),\"\")","v":0},0,0,0,0,0,0,0,0,0,0]
[null,null,"Acreditamiento del saldo a favor de periodos anteriores (Sin exceder de la cantidad a cargo)"]
[null,null,"Impuesto a cargo",{"$f":"IFERROR(IF((D130+D136)>=(D135+D137+D139),ROUND(D130+D136-D135-D137-D139,0),\"\"),\"\")","v":0},{"$f":"IFERROR(IF((E130+E136)>=(E135+E137+E139),ROUND(E130+E136-E135-E137-E139,0),\"\"),\"\")","v":0},0,0,0,0,0,0,0,0,0,0]
[null,null,"Saldo a favor",{"$f":"IFERROR(IF((D135+D137)>(D130+D136),ROUND(D135+D137-D130-D136,0),\"\"),\"\")","v":""},{"$f":"IFERROR(IF((E135+E137)>(E130+E136),ROUND(E135+E137-E130-E136,0),\"\"),\"\")","v":""},"","","","","","","","","",""]
[null,null,"Devolución inmediata obtenida"]
[null,null,"Impuesto a favor",{"$f":"IFERROR(ROUND(D141-D142,0),\"\")","v":""},{"$f":"IFERROR(ROUND(E141-E142,0),\"\")","v":""},"","","","","","","","","",""]
[]
[null,null,"PAGO"]
[null,null,"A cargo",{"$f":"D140","v":0},{"$f":"E140","v":0},0,0,0,0,0,0,0,0,0,0]
[null,null,"(-) Subsidio para el empleo"]
[null,null,"(-) Compensaciones"]
[null,null,"(-) Estímulos al impuesto a cargo",{"$f":"SUM(D150:D155)","v":0},{"$f":"SUM(E150:E155)","v":0},0,0,0,0,0,0,0,0,0,0]
[null,null,"Estímulo a gasolinas en zona fronteriza"]
[null,null,"Estímulo a gasolinas en regiones cercanas a zona fronteriza"]
[null,null,"Estímulo complementario combustibles"]
[null,null,"Estímulo fiscal por la importación o enajenación de jugos, néctares, concentrados de frutas o de verduras y de productos para beber"]
[null,null,"Estímulo fiscal por la prestación de servicios de hotelería y conexos a turistas extranjeros"]
[null,null,"Estímulo fiscal por el uso temporal de centros de convenciones y de exposiciones a residentes en el extranjero"]
[null,null,"Total de aplicaciones",{"$f":"IFERROR(ROUND(D147+D148+D149,0),0)","v":0},{"$f":"IFERROR(ROUND(E147+E148+E149,0),0)","v":0},0,0,0,0,0,0,0,0,0,0]
[]
[null,null,"Total de contribuciones",{"$f":"D146","v":0},{"$f":"E146","v":0},0,0,0,0,0,0,0,0,0,0]
[null,null,"(-) Total de aplicaciones",{"$f":"D156","v":0},{"$f":"E156","v":0},0,0,0,0,0,0,0,0,0,0]
[null,null,"(=) Cantidad a cargo",{"$f":"IFERROR(IF(D158>=D159,D158-D159,0),0)","v":0},{"$f":"IFERROR(IF(E158>=E159,E158-E159,0),0)","v":0},0,0,0,0,0,0,0,0,0,0]
[]
[null,null,"Impuesto a favor",{"$f":"D143","v":""},{"$f":"E143","v":""},"","","","","","","","","",""]

{"sheet":"IVAP","index":17,"n_rows":44,"n_cols":14,"rows_kept":44,"cut":false,"hidden":false,"merged":[]}
[]
[null,null,null,null,null,null,"Ir al MENÚ"]
[null,"Determinación del pago mensual de IVA plataformas tecnológicas"]
[]
[null,null,"Enero","Febrero","Marzo","Abril","Mayo","Junio","Julio","Agosto","Septiembre","Octubre","Noviembre","Diciembre"]
[null,"Ingreos obtenidos mediante intermediarios"]
[null,"(+) Ingresos obtenidos directamente del usuario"]
[null,"(=) Ingresos totales del mes",{"$f":"SUM(C6:C7)","v":0},{"$f":"SUM(D6:D7)","v":0},0,0,0,0,0,0,0,0,0,0]
[null,"(x) Tasa %",0.16,0.16,0.16,0.16,0.16,0.16,0.16,0.16,0.16,0.16,0.16,0.16]
[null,"(=) IVA a cargo a la tasa del 16%",{"$f":"IFERROR(ROUND(C8*C9,0),0)","v":0},{"$f":"IFERROR(ROUND(D8*D9,0),0)","v":0},0,0,0,0,0,0,0,0,0,0]
[null,"(-) IVA acreditable"]
[null,"(-) IVA retenido"]
[null,"(=) Cantidad a cargo",{"$f":"IFERROR(IF(C10>=(C11+C12),ROUND(C10-C11-C12,0),\"\"),\"\")","v":0},{"$f":"IFERROR(IF(D10>=(D11+D12),ROUND(D10-D11-D12,0),\"\"),\"\")","v":0},0,0,0,0,0,0,0,0,0,0]
[null,"(-) Acreditamiento de saldo a favor de periodos anteriores (sin exceder de cantidad a cargo)"]
[null,"(=) Impuesto a cargo",{"$f":"IFERROR(IF(C13>=C14,C13-C14,\"\"),\"\")","v":0},{"$f":"IFERROR(IF(D13>=D14,D13-D14,\"\"),\"\")","v":0},0,0,0,0,0,0,0,0,0,0]
[]
[null,"(=) Impuesto a favor",{"$f":"IFERROR(IF((C11+C12)>C10,C11+C12-C10,\"\"),\"\")","v":""},{"$f":"IFERROR(IF((D11+D12)>D10,D11+D12-D10,\"\"),\"\")","v":""},"","","","","","","","","",""]
[]
[]
[]
[null,"Determinación del pago mensual de IVA (pago definitivo)"]
[]
[null,"Servicio de transporte terrestre de personas y entrega de bienes","Enero","Febrero","Marzo","Abril","Mayo","Junio","Julio","Agosto","Septiembre","Octubre","Noviembre","Diciembre"]
[null,"Ingresos obtenidos directamente del usuario por servicios terrestres de pasajeros"]
[null,"(+) Ingresos obtenidos directamente del usuario por entrega de bienes"]
[null,"(=) Ingresos totales del mes",{"$f":"SUM(C24:C25)","v":0},{"$f":"SUM(D24:D25)","v":0},0,0,0,0,0,0,0,0,0,0]
[null,"(x) Tasa %",0.08,0.08,0.08,0.08,0.08,0.08,0.08,0.08,0.08,0.08,0.08,0.08]
[null,"(=) IVA a cargo",{"$f":"IFERROR(ROUND(C26*C27,0),0)","v":0},{"$f":"IFERROR(ROUND(D26*D27,0),0)","v":0},0,0,0,0,0,0,0,0,0,0]
[]
[]
[null,"Servicio de hospedaje","Enero","Febrero","Marzo","Abril","Mayo","Junio","Julio","Agosto","Septiembre","Octubre","Noviembre","Diciembre"]
[null,"Ingresos obtenidos directamente del usuario"]
[null,"(=) Ingresos totales del mes",{"$f":"SUM(C32)","v":0},{"$f":"SUM(D32)","v":0},0,0,0,0,0,0,0,0,0,0]
[null,"(x) Tasa %",0.08,0.08,0.08,0.08,0.08,0.08,0.08,0.08,0.08,0.08,0.08,0.08]
[null,"(=) IVA a cargo",{"$f":"IFERROR(ROUND(C33*C34,0),0)","v":0},{"$f":"IFERROR(ROUND(D33*D34,0),0)","v":0},0,0,0,0,0,0,0,0,0,0]
[]
[]
[]
[null,"Enajenación de bienes y/o prestación de servicios","Enero","Febrero","Marzo","Abril","Mayo","Junio","Julio","Agosto","Septiembre","Octubre","Noviembre","Diciembre"]
[null,"Ingresos obtenidos directamente del usuario por enajenación de bienes"]
[null,"(+) Ingresos obtenidos directamente del usuario por prestación de servicios"]
[null,"(=) Ingresos totales del mes",{"$f":"SUM(C41)","v":0},{"$f":"SUM(D41)","v":0},0,0,0,0,0,0,0,0,0,0]
[null,"(x) Tasa %",0.08,0.08,0.08,0.08,0.08,0.08,0.08,0.08,0.08,0.08,0.08,0.08]
[null,"(=) IVA a cargo",{"$f":"IFERROR(ROUND(C42*C43,0),0)","v":0},{"$f":"IFERROR(ROUND(D42*D43,0),0)","v":0},0,0,0,0,0,0,0,0,0,0]

{"sheet":"GENERALES1","index":18,"n_rows":32,"n_cols":10,"rows_kept":32,"cut":false,"hidden":true,"merged":[[4,1,4,3],[5,1,5,2],[19,1,19,2],[23,1,23,2]]}
[]
[]
[null,"Ir al MENÚ"]
[]
[null,"Tabla de vacaciones para trabajadores de no buques (art. 76 LFT)",null,null,null,null,"Categoría","Herramienta de trabajo","Factor máximo de exclusión por uso de plataforma digital","Aplicable de julio a septiembre 2025"]
[null,"Años",null,null,null,null,"A","Vehículos motorizados de cuatro o más ruedas de combustión interna, eléctricos o análogos.",0.36,0.6]
[null,"Mínimo","Máximo","Días",null,null,"B","Vehículos motorizados de dos ruedas de combustión interna, eléctricos o análogos.",0.3,0.5]
[null,0,1,12,null,null,"C","Transportes no motorizados o sin medio de transporte.",0.12,0.15]
[null,{"$f":"C8+0.01","v":1.01},2,{"$f":"D8+2","v":14}]
[null,{"$f":"C9+0.01","v":2.0099999999999998},3,{"$f":"D9+2","v":16}]
[null,3.01,4,18]
[null,4.01,5,20]
[null,5.01,{"$f":"C12+5","v":10},22]
[null,10.01,{"$f":"C13+5","v":15},24]
[null,15.01,20,26]
[null,20.010000000000002,25,28]
[null,25.01,30,30]
[null,30.01,35,32]
[]
[null,"Salario mínimo"]
[null,"Zona Libre de la Frontera Norte",419.88]
[null,"Zona del Salario Mínimo General",278.8]
[]
[null,"Valor de la UMA"]
[null,"Enero",108.57]
[null,"Febrero en adelante",113.14]
[]
[null,"Valor de la UMA mensual enero",3300.53]
[null,"Valor de la UMA mensual posterior",3439.46]
[null,"Total base ISR para subsidio",10171]
[null,"% del subsidio al empleo",0.13800000000000001]
[null,"% Subsidio al empleo Enero",0.1439]

{"sheet":"FUNDAMENTO","index":19,"n_rows":99,"n_cols":4,"rows_kept":99,"cut":false,"hidden":false,"merged":[[98,1,98,3],[7,1,7,3],[8,1,8,3],[41,1,42,1],[50,1,50,3],[97,1,97,3]]}
[]
[null,null,null,"Ir al MENÚ"]
[]
[]
[null,"Concepto","Disposición","Fundamento"]
[null,"Cuota obrera","Corresponde al patrón pagar íntegramente la cuota señalada para los trabajadores, en los casos en que éstos perciban como cuota diaria el salario mínimo.","Artículo 36 LSS"]
[null,"Aportación INFONAVIT","Toda empresa agrícola, industrial, minera o de cualquier otra clase de trabajo, está obligada a proporcionar a los trabajadores habitaciones cómodas e higiénicas. Para dar cumplimiento a esta obligación, las empresas deberán aportar al Fondo Nacional de la Vivienda el cinco por ciento sobre los salarios de los trabajadores a su servicio.","Artículo 136 LINFONAVIT"]
[null,"Acuerdo IMSS D.O.F. 07/07/2023"]
[]
[]
[]
[]
[]
[]
[]
[]
[]
[]
[]
[]
[]
[]
[]
[]
[]
[]
[]
[]
[]
[]
[]
[]
[]
[]
[]
[]
[]
[null,"Concepto","Disposición","Fundamento"]
[null,"Tiempo extra simple","En los casos de siniestro o riesgo inminente en que peligre la vida del trabajador, de sus compañeros o del patrón, o la existencia misma de la empresa, la jornada de trabajo podrá prolongarse por el tiempo estrictamente indispensable para evitar esos males.","Artículo 65 LFT"]
[null,"Tiempo extra","Podrá también prolongarse la jornada de trabajo por circunstancias extraordinarias, sin exceder nunca de tres horas diarias ni de tres veces en una semana.","Artículo 66 LFT"]
[null,"Riesgo de trabajo","Riesgos de trabajo son los accidentes y enfermedades a que están expuestos los trabajadores en ejercicio o con motivo del trabajo.","Artículo 41 LSS"]
[null,"Seguro de riesgos de trabajo","Al inscribirse por primera vez en el Instituto o al cambiar de actividad, las empresas cubrirán la prima media de la clase que conforme al Reglamento les corresponda, de acuerdo a la tabla siguiente: ","Artículo 74 LSS"]
[null,null,"Las cuotas del Seguro de Riesgos de Trabajo que deban pagar los patrones y demás sujetos obligados, al registrarse por primera vez ante el Instituto o al cambiar de actividad, por disposición de la Ley, de este Reglamento o por sentencia definitiva, serán las que resulten de aplicar la prima media de la clase que corresponda, determinadas por el propio patrón y validadas por el Instituto, al salario base de cotización en los términos de la Ley y de este Reglamento.","Artículo 24 RMACERF"]
[null,"Enfermedad y maternidad prestaciones en especie","Las prestaciones en especie del seguro de enfermedades y maternidad, se financiarán en la forma siguiente: \n \nI. Por cada asegurado se pagará mensualmente una cuota diaria patronal equivalente al trece punto nueve por ciento de un salario mínimo general diario para el Distrito Federal; \n \nII. Para los asegurados cuyo salario base de cotización sea mayor a tres veces el salario mínimo general diario para el Distrito Federal; se cubrirá además de la cuota establecida en la fracción anterior, una cuota adicional patronal equivalente al seis por ciento y otra adicional obrera del dos por ciento, de la cantidad que resulte de la diferencia entre el salario base de cotización y tres veces el salario mínimo citado, y \n \nIII. El Gobierno Federal cubrirá mensualmente una cuota diaria por cada asegurado, equivalente a trece punto nueve por ciento de un salario mínimo general para el Distrito Federal, a la fecha de entrada en vigor de esta Ley, la cantidad inicial que resulte se actualizará trimestralmente de acuerdo a la variación del Indice Nacional de Precios al Consumidor. ","Artículo 106 LSS"]
[null,"Enfermedad y maternidad prestaciones en dinero","Las prestaciones en dinero del seguro de enfermedades y maternidad se financiarán con una cuota del uno por ciento sobre el salario base de cotización, que se pagará de la forma siguiente:\n\nI. A los patrones les corresponderá pagar el setenta por ciento de dicha cuota;\n\nII. A los trabajadores les corresponderá pagar el veinticinco por ciento de la misma, y\n\nIII. Al Gobierno Federal le corresponderá pagar el cinco por ciento restante.","Artículo 107 LSS"]
[null,"Enfermedad y maternidad gastos médicos para pensionados y beneficiarios","En los casos previstos por el artículo 23, el Estado aportará la contribución que le corresponda en términos de esta Ley, independientemente de la que resulte a cargo del patrón por la valuación actuarial de su contrato, pagando éste, tanto su propia cuota como la parte de la cuota obrera que le corresponda conforme a dicha valuación.\n\nPara cubrir las prestaciones en especie del seguro de enfermedades y maternidad de los pensionados y sus beneficiarios, en los seguros de riesgos de trabajo, invalidez y vida, así como retiro, cesantía en edad avanzada y vejez, los patrones, los trabajadores y el Estado aportarán una cuota de uno punto cinco por ciento sobre el salario base de cotización. De dicha cuota corresponderá al patrón pagar el uno punto cero cinco por ciento, a los trabajadores el cero punto trescientos setenta y cinco por ciento y al Estado el cero punto cero setenta y cinco por ciento.","Artículo 25 LSS"]
[null,"Invalidez y vida","A los patrones y a los trabajadores les corresponde cubrir, para el seguro de invalidez y vida el uno punto setenta y cinco por ciento y el cero punto seiscientos veinticinco por ciento sobre el salario base de cotización, respectivamente.","Artículo 147 LSS"]
[null,"Retiro, cesantia en edad avanzada y vejez","Artículo 168 LSS. Las cuotas y aportaciones a que se refiere el artículo anterior serán: \n \nI.  En el ramo de retiro, a los patrones les corresponde cubrir el importe equivalente al dos por ciento del salario base de cotización del trabajador. \nII.  En los ramos de cesantía en edad avanzada y vejez, a los patrones y a los trabajadores les corresponde cubrir las cuotas del tres punto ciento cincuenta por ciento y uno punto ciento veinticinco por ciento sobre el salario base de cotización, respectivamente. \nIII.  En los ramos de cesantía en edad avanzada y vejez la contribución del Estado será igual al siete punto ciento cuarenta y tres por ciento del total de las cuotas patronales de estos ramos, y \nIV. Una cantidad por cada día de salario cotizado, que aporte mensualmente el Gobierno Federal por concepto de cuota social para los trabajadores que ganen hasta quince veces el salario mínimo general vigente en el Distrito Federal, que se depositará en la cuenta individual de cada trabajador asegurado conforme a la tabla siguiente: ","Artículo 168 LSS"]
[null,"Guarderia","El monto de la prima para este seguro será del uno por ciento sobre el salario base de cotización. Para prestaciones sociales solamente se podrá destinar hasta el veinte por ciento de dicho monto.","Artículo 211 LSS"]
[]
[null,"Acuerdo IMSS D.O.F. 11/07/2024"]
[]
[]
[]
[]
[]
[]
[]
[]
[]
[]
[]
[]
[]
[]
[]
[]
[]
[]
[]
[]
[]
[]
[]
[]
[]
[]
[]
[]
[]
[]
[]
[]
[]
[]
[]
[]
[]
[]
[]
[]
[]
[]
[]
[]
[]
[]
[null,"Artículo 153-E LFT. En las empresas que tengan más de 50 trabajadores se constituirán Comisiones Mixtas de Capacitación, Adiestramiento y Productividad, integradas por igual número de representantes de los trabajadores y de los patrones, y serán las encargadas de:\n\nI. \tVigilar, instrumentar, operar y mejorar los sistemas y los programas de capacitación y adiestramiento;\n\nII. \tProponer los cambios necesarios en la maquinaria, los equipos, la organización del trabajo y las relaciones laborales, de conformidad con las mejores prácticas tecnológicas y organizativas que incrementen la productividad en función de su grado de desarrollo actual;\n\nIII. \tProponer las medidas acordadas por el Comité Nacional y los Comités Estatales de Productividad a que se refieren los artículos 153-K y 153-Q, con el propósito de impulsar la capacitación, medir y elevar la productividad, así como garantizar el reparto equitativo de sus beneficios;\n\nIV. \tVigilar el cumplimiento de los acuerdos de productividad; y\n\nV. \tResolver las objeciones que, en su caso, presenten los trabajadores con motivo de la distribución de los beneficios de la productividad.\n\nPara el caso de las micro y pequeñas empresas, que son aquellas que cuentan con hasta 50 trabajadores, la Secretaría del Trabajo y Previsión Social y la Secretaría de Economía estarán obligadas a incentivar su productividad mediante la dotación de los programas a que se refiere el artículo 153-J, así como la capacitación relacionada con los mismos. Para tal efecto, con el apoyo de las instituciones académicas relacionadas con los temas de los programas referidos, convocarán  en razón de su rama, sector, entidad federativa o región a los micro y pequeños empresarios, a los trabajadores y sindicatos que laboran en dichas empresas."]
[null,"Artículo 39-F LFT. Las relaciones de trabajo por tiempo indeterminado serán continuas por regla general, pero podrán pactarse para labores discontinuas cuando los servicios requeridos sean para labores fijas y periódicas de carácter discontinuo, en los casos de actividades de temporada o que no exijan la prestación de servicios toda la semana, el mes o el año.\n\nLos trabajadores que presten servicios bajo esta modalidad tienen los mismos derechos y obligaciones que los trabajadores por tiempo indeterminado, en proporción al tiempo trabajado en cada periodo."]

{"sheet":"GENERAL","index":20,"n_rows":226,"n_cols":10,"rows_kept":226,"cut":false,"hidden":true,"merged":[[38,2,38,9],[60,1,60,3],[70,5,70,6]]}
[]
[]
[]
[null,"Enero",{"$f":"IFERROR(DAY(EOMONTH(DATE(#REF!,ROW($A1),1),0)),\"\")","v":""}]
[null,"Febrero",{"$f":"IFERROR(DAY(EOMONTH(DATE(#REF!,ROW($A2),1),0)),\"\")","v":""}]
[null,"Marzo",{"$f":"IFERROR(DAY(EOMONTH(DATE(#REF!,ROW($A3),1),0)),\"\")","v":""}]
[null,"Abril",{"$f":"IFERROR(DAY(EOMONTH(DATE(#REF!,ROW($A4),1),0)),\"\")","v":""}]
[null,"Mayo",{"$f":"IFERROR(DAY(EOMONTH(DATE(#REF!,ROW($A5),1),0)),\"\")","v":""}]
[null,"Junio",{"$f":"IFERROR(DAY(EOMONTH(DATE(#REF!,ROW($A6),1),0)),\"\")","v":""}]
[null,"Julio",{"$f":"IFERROR(DAY(EOMONTH(DATE(#REF!,ROW($A7),1),0)),\"\")","v":""}]
[null,"Agosto",{"$f":"IFERROR(DAY(EOMONTH(DATE(#REF!,ROW($A8),1),0)),\"\")","v":""}]
[null,"Septiembre",{"$f":"IFERROR(DAY(EOMONTH(DATE(#REF!,ROW($A9),1),0)),\"\")","v":""}]
[null,"Octubre",{"$f":"IFERROR(DAY(EOMONTH(DATE(#REF!,ROW($A10),1),0)),\"\")","v":""}]
[null,"Noviembre",{"$f":"IFERROR(DAY(EOMONTH(DATE(#REF!,ROW($A11),1),0)),\"\")","v":""}]
[null,"Diciembre",{"$f":"IFERROR(DAY(EOMONTH(DATE(#REF!,ROW($A12),1),0)),\"\")","v":""}]
[]
[]
[null,"Enero - Febrero",{"$f":"IFERROR(C4+C5,\"\")","v":""}]
[null,"Marzo - Abril",{"$f":"IFERROR(C6+C7,\"\")","v":""}]
[null,"Mayo - Junio",{"$f":"IFERROR(C8+C9,\"\")","v":""}]
[null,"Julio - Agosto",{"$f":"IFERROR(C10+C11,\"\")","v":""}]
[null,"Septiembre - Octubre",{"$f":"IFERROR(C12+C13,\"\")","v":""}]
[null,"Noviembre - Diciembre",{"$f":"IFERROR(C14+C15,\"\")","v":""}]
[]
[]
[]
[]
[null,"Cesantía en edad avanzada y vejez"]
[null,"Valor mímino","Valor máximo","% a aplicar"]
[null,{"$f":"IFERROR(SBCP!$D$21,\"\")","v":""},{"$f":"IFERROR(#REF!,\"\")","v":""},{"$f":"IFERROR(VLOOKUP(B30,$B$40:$J$48,VLOOKUP(#REF!,GENERAL!$B$51:$C$58,2,FALSE),FALSE),\"\")","v":""}]
[null,{"$f":"IFERROR(ROUND(#REF!*1.01,2),\"\")","v":""},{"$f":"IFERROR(ROUND(#REF!*1.5,2),\"\")","v":""},{"$f":"IFERROR(VLOOKUP(B31,$B$40:$J$48,VLOOKUP(#REF!,GENERAL!$B$51:$C$58,2,FALSE),FALSE),\"\")","v":""}]
[null,{"$f":"IFERROR(ROUND(#REF!*1.51,2),\"\")","v":""},{"$f":"IFERROR(ROUND(#REF!*2,2),\"\")","v":""},{"$f":"IFERROR(VLOOKUP(B32,$B$40:$J$48,VLOOKUP(#REF!,GENERAL!$B$51:$C$58,2,FALSE),FALSE),\"\")","v":""}]
[null,{"$f":"IFERROR(ROUND(#REF!*2.01,2),\"\")","v":""},{"$f":"IFERROR(ROUND(#REF!*2.5,2),\"\")","v":""},{"$f":"IFERROR(VLOOKUP(B33,$B$40:$J$48,VLOOKUP(#REF!,GENERAL!$B$51:$C$58,2,FALSE),FALSE),\"\")","v":""}]
[null,{"$f":"IFERROR(ROUND(#REF!*2.51,2),\"\")","v":""},{"$f":"IFERROR(ROUND(#REF!*3,2),\"\")","v":""},{"$f":"IFERROR(VLOOKUP(B34,$B$40:$J$48,VLOOKUP(#REF!,GENERAL!$B$51:$C$58,2,FALSE),FALSE),\"\")","v":""}]
[null,{"$f":"IFERROR(ROUND(#REF!*3.01,2),\"\")","v":""},{"$f":"IFERROR(ROUND(#REF!*3.5,2),\"\")","v":""},{"$f":"IFERROR(VLOOKUP(B35,$B$40:$J$48,VLOOKUP(#REF!,GENERAL!$B$51:$C$58,2,FALSE),FALSE),\"\")","v":""}]
[null,{"$f":"IFERROR(ROUND(#REF!*3.51,2),\"\")","v":""},{"$f":"IFERROR(ROUND(#REF!*4,2),\"\")","v":""},{"$f":"IFERROR(VLOOKUP(B36,$B$40:$J$48,VLOOKUP(#REF!,GENERAL!$B$51:$C$58,2,FALSE),FALSE),\"\")","v":""}]
[null,{"$f":"IFERROR(ROUND(#REF!*4.01,2),\"\")","v":""},99999999,{"$f":"IFERROR(VLOOKUP(B37,$B$40:$J$48,VLOOKUP(#REF!,GENERAL!$B$51:$C$58,2,FALSE),FALSE),\"\")","v":""}]
[]
[null,null,"% a aplicar"]
[null,"Valor mímino",2023,2024,2025,2026,2027,2028,2029,2030]
[null,{"$f":"IFERROR(#REF!,\"\")","v":""},3.15E-2,3.15E-2,3.15E-2,3.15E-2,3.15E-2,3.15E-2,3.15E-2,3.15E-2]
[null,{"$f":"IFERROR(ROUND(#REF!*1.01,2),\"\")","v":""},3.2809999999999999E-2,3.4130000000000001E-2,3.5439999999999999E-2,3.6760000000000001E-2,3.807E-2,3.9390000000000001E-2,4.07E-2,4.2020000000000002E-2]
[null,{"$f":"IFERROR(ROUND(#REF!*1.51,2),\"\")","v":""},3.5749999999999997E-2,0.04,4.4260000000000001E-2,4.8509999999999998E-2,5.2760000000000001E-2,5.7009999999999998E-2,6.1260000000000002E-2,6.5519999999999995E-2]
[null,{"$f":"IFERROR(ROUND(#REF!*2.01,2),\"\")","v":""},3.7510000000000002E-2,4.3529999999999999E-2,4.9540000000000001E-2,5.5559999999999998E-2,6.157E-2,6.7589999999999997E-2,7.3599999999999999E-2,7.9619999999999996E-2]
[null,{"$f":"IFERROR(ROUND(#REF!*2.51,2),\"\")","v":""},3.8690000000000002E-2,4.5879999999999997E-2,5.3069999999999999E-2,6.0260000000000001E-2,6.7449999999999996E-2,7.4639999999999998E-2,8.183E-2,8.9020000000000002E-2]
[null,{"$f":"IFERROR(ROUND(#REF!*3.01,2),\"\")","v":""},3.9530000000000003E-2,4.7559999999999998E-2,5.5590000000000001E-2,6.361E-2,7.1639999999999995E-2,7.9670000000000005E-2,8.77E-2,9.5729999999999996E-2]
[null,{"$f":"IFERROR(ROUND(#REF!*3.51,2),\"\")","v":""},4.0160000000000001E-2,4.8820000000000002E-2,5.747E-2,6.6129999999999994E-2,7.4789999999999995E-2,8.3449999999999996E-2,9.2109999999999997E-2,0.10077]
[null,{"$f":"IFERROR(ROUND(#REF!*4.01,2),\"\")","v":""},4.2410000000000003E-2,5.3310000000000003E-2,6.4219999999999999E-2,7.5130000000000002E-2,8.6029999999999995E-2,9.6939999999999998E-2,0.10784000000000001,0.11874999999999999]
[]
[]
[null,2023,2]
[null,2024,3]
[null,2025,4]
[null,2026,5]
[null,2027,6]
[null,2028,7]
[null,2029,8]
[null,2030,9]
[]
[]
[null,"Tabla de vacaciones"]
[null,"Mímino","Máximo","Días",null,"Área geográfica","Salario mímino"]
[null,0,1,12,null,"Zona Libre de la Frontera Norte",419.88]
[null,{"$f":"C63+0.01","v":1.01},{"$f":"C63+1","v":2},{"$f":"D63+2","v":14},null,"Zona del Salario Mínimo General",278.8]
[null,{"$f":"C64+0.01","v":2.0099999999999998},{"$f":"C64+1","v":3},{"$f":"D64+2","v":16}]
[null,3.01,4,18]
[null,4.01,5,20,null,"Valor de la UMA","Importe"]
[null,5.01,{"$f":"C67+5","v":10},22,null,"Enero",103.74]
[null,10.01,{"$f":"C68+5","v":15},24,null,"Febrero en adelante",108.57]
[null,15.01,20,26]
[null,20.010000000000002,25,28,null,"Pediodicidad"]
[null,25.01,30,30,null,"Diario",1]
[null,30.01,35,32,null,"Semanal",7]
[null,35.01,40,34,null,"Catorcenal",10]
[null,40.01,45,36,null,"Quincenal",14]
[null,45.01,50,38,null,"Mensual",30]
[null,50.01,55,40]
[null,55.01,60,42]
[null,60.01,65,44]
[null,65.010000000000005,70,46]
[]
[]
[null,null,null,null,null,"www.acfmsc.com"]
[]
[]
[]
[null,1]
[null,2]
[null,3]
[null,4]
[null,5]
[null,6]
[null,7]
[null,8]
[null,9]
[null,10]
[null,11]
[null,12]
[null,13]
[null,14]
[null,15]
[null,16]
[null,17]
[null,18]
[null,19]
[null,20]
[null,21]
[null,22]
[null,23]
[null,24]
[null,25]
[null,26]
[null,27]
[null,28]
[null,29]
[null,30]
[null,31]
[]
[]
[]
[]
[]
[]
[]
[]
[]
[]
[]
[]
[]
[]
[]
[null,"c_TipoContrato","Descripción"]
[null,1,"Contrato de trabajo por tiempo indeterminado"]
[null,2,"Contrato de trabajo para obra determinada"]
[null,3,"Contrato de trabajo por tiempo determinado"]
[null,4,"Contrato de trabajo por temporada"]
[null,5,"Contrato de trabajo sujeto a prueba"]
[null,6,"Contrato de trabajo con capacitación inicial"]
[null,7,"Modalidad de contratación por pago de hora laborada"]
[null,8,"Modalidad de trabajo por comisión laboral"]
[null,9,"Modalidades de contratación donde no existe relación de trabajo"]
[null,10,"Jubilación, pensión, retiro."]
[null,99,"Otro contrato"]
[]
[]
[null,"c_TipoJornada","Descripción"]
[null,1,"Diurna"]
[null,2,"Nocturna"]
[null,3,"Mixta"]
[null,4,"Por hora"]
[null,5,"Reducida"]
[null,6,"Continuada"]
[null,7,"Partida"]
[null,8,"Por turnos"]
[null,99,"Otra Jornada"]
[]
[null,"c_TipoRegimen","Descripción"]
[null,2,"Sueldos (Incluye ingresos señalados en la fracción I del artículo 94 de LISR)"]
[null,3,"Jubilados"]
[null,4,"Pensionados"]
[null,5,"Asimilados Miembros Sociedades Cooperativas Produccion"]
[null,6,"Asimilados Integrantes Sociedades Asociaciones Civiles"]
[null,7,"Asimilados Miembros consejos"]
[null,8,"Asimilados comisionistas"]
[null,9,"Asimilados Honorarios"]
[null,10,"Asimilados acciones"]
[null,11,"Asimilados otros"]
[null,12,"Jubilados o Pensionados"]
[null,13,"Indemnización o Separación"]
[null,99,"Otro Regimen"]
[]
[null,"c_RiesgoPuesto","Descripción"]
[null,1,"Clase I"]
[null,2,"Clase II"]
[null,3,"Clase III"]
[null,4,"Clase IV"]
[null,5,"Clase V"]
[null,99,"No aplica"]
[]
[null,"c_PeriodicidadPago","Descripción"]
[null,1,"Diario"]
[null,2,"Semanal"]
[null,3,"Catorcenal"]
[null,4,"Quincenal"]
[null,5,"Mensual"]
[null,6,"Bimestral"]
[null,7,"Unidad obra"]
[null,8,"Comisión"]
[null,9,"Precio alzado"]
[null,10,"Decenal"]
[null,99,"Otra Periodicidad"]
[]
[null,"c_Estado","c_Pais","Nombre del estado"]
[null,"AGU","MEX","Aguascalientes"]
[null,"BCN","MEX","Baja California"]
[null,"BCS","MEX","Baja California Sur"]
[null,"CAM","MEX","Campeche"]
[null,"CHP","MEX","Chiapas"]
[null,"CHH","MEX","Chihuahua"]
[null,"COA","MEX","Coahuila"]
[null,"COL","MEX","Colima"]
[null,"CMX","MEX","Ciudad de México"]
[null,"DUR","MEX","Durango"]
[null,"GUA","MEX","Guanajuato"]
[null,"GRO","MEX","Guerrero"]
[null,"HID","MEX","Hidalgo"]
[null,"JAL","MEX","Jalisco"]
[null,"MEX","MEX","Estado de México"]
[null,"MIC","MEX","Michoacán"]
[null,"MOR","MEX","Morelos"]
[null,"NAY","MEX","Nayarit"]
[null,"NLE","MEX","Nuevo León"]
[null,"OAX","MEX","Oaxaca"]
[null,"PUE","MEX","Puebla"]
[null,"QUE","MEX","Querétaro"]
[null,"ROO","MEX","Quintana Roo"]
[null,"SLP","MEX","San Luis Potosí"]
[null,"SIN","MEX","Sinaloa"]
[null,"SON","MEX","Sonora"]
[null,"TAB","MEX","Tabasco"]
[null,"TAM","MEX","Tamaulipas"]
[null,"TLA","MEX","Tlaxcala"]
[null,"VER","MEX","Veracruz"]
[null,"YUC","MEX","Yucatán"]
[null,"ZAC","MEX","Zacatecas"]

{"sheet":"TARIFA","index":21,"n_rows":313,"n_cols":14,"rows_kept":313,"cut":false,"hidden":true,"merged":[[169,1,169,4],[184,1,184,4],[79,1,79,4],[94,1,94,4],[109,1,109,4],[124,1,124,4],[139,1,139,4],[154,1,154,4],[64,1,64,4],[4,1,4,4],[5,11,5,13],[19,1,19,4],[34,1,34,4],[49,1,49,4]]}
[]
[]
[]
[]
[null,"VI. Tarifa del mes de enero de 2025, para efectuar los pagos provisionales mensuales a que se refiere el artículo 106 de la Ley del ISR, aplicable a los ingresos que perciban los contribuyentes a que se refiere el Título IV, Capítulo II, Sección I de la Ley del ISR."]
[null,"Límite inferior","Límite superior","Cuota fija","Por ciento para aplicarse sobre el excedente del límite inferior",null,null,null,null,null,null,"Tabla mensual RESICO"]
[null,"$","$","$","%",null,null,null,null,null,null,0,25000,0.01]
[null,0.01,746.04,0,1.92,null,null,null,null,null,null,{"$f":"M7+0.01","v":25000.01},50000,1.0999999999999999E-2]
[null,746.05,6332.05,14.32,6.4,null,null,null,null,null,null,{"$f":"M8+0.01","v":50000.01},83333,1.4999999999999999E-2]
[null,6332.06,11128.01,371.83,10.88,null,null,null,null,null,null,83333.009999999995,208333,0.02]
[null,11128.02,12935.82,893.63,16,null,null,null,null,null,null,208333.01,3500000,2.5000000000000001E-2]
[null,12935.83,15487.71,1182.8800000000001,17.920000000000002]
[null,15487.72,31236.49,1640.18,21.36]
[null,31236.5,49233,5004.12,23.52]
[null,49233.01,93993.9,9236.89,30]
[null,93993.91,125325.2,22665.17,32]
[null,125325.21,375975.61,32691.18,34]
[null,375975.62,"En adelante",117912.32000000001,35]
[]
[null,"Tarifa del mes de febrero de 2025, para efectuar los pagos provisionales mensuales a que se refiere el artículo 106 de la Ley del ISR, aplicable a los ingresos que perciban los contribuyentes a que se refiere el Título IV, Capítulo II, Sección I de la Ley del ISR."]
[null,"Límite inferior","Límite superior","Cuota fija","Por ciento para aplicarse sobre el excedente del límite inferior"]
[null,"$","$","$","%"]
[null,0.01,1492.08,0,1.92]
[null,1492.09,12664.1,28.64,6.4]
[null,12664.11,22256.02,743.66,10.88]
[null,22256.03,25871.64,1787.26,16]
[null,25871.65,30975.42,2365.7600000000002,17.920000000000002]
[null,30975.43,62472.98,3280.36,21.36]
[null,62472.99,98466,10008.24,23.52]
[null,98466.01,187987.8,18473.78,30]
[null,187987.81,250650.4,45330.34,32]
[null,250650.41,751951.22,65382.36,34]
[null,751951.23,"En adelante",235824.64000000001,35]
[]
[null,"Tarifa del mes de marzo de 2025, para efectuar los pagos provisionales mensuales a que se refiere el artículo 106 de la Ley del ISR, aplicable a los ingresos que perciban los contribuyentes a que se refiere el Título IV, Capítulo II, Sección I de la Ley del ISR."]
[null,"Límite inferior","Límite superior","Cuota fija","Por ciento para aplicarse sobre el excedente del límite inferior"]
[null,"$","$","$","%"]
[null,0.01,2238.12,0,1.92]
[null,2238.13,18996.150000000001,42.96,6.4]
[null,18996.16,33384.03,1115.49,10.88]
[null,33384.04,38807.46,2680.89,16]
[null,38807.47,46463.13,3548.64,17.920000000000002]
[null,46463.14,93709.47,4920.54,21.36]
[null,93709.48,147699,15012.36,23.52]
[null,147699.01,281981.7,27710.67,30]
[null,281981.71000000002,375975.6,67995.509999999995,32]
[null,375975.61,1127926.83,98073.54,34]
[null,1127926.8400000001,"En adelante",353736.96000000002,35]
[]
[null,"Tarifa del mes de abril de 2025, para efectuar los pagos provisionales mensuales a que se refiere el artículo 106 de la Ley del ISR, aplicable a los ingresos que perciban los contribuyentes a que se refiere el Título IV, Capítulo II, Sección I de la Ley del ISR."]
[null,"Límite inferior","Límite superior","Cuota fija","Por ciento para aplicarse sobre el excedente del límite inferior"]
[null,"$","$","$","%"]
[null,0.01,2984.16,0,1.92]
[null,2984.17,25328.2,57.28,6.4]
[null,25328.21,44512.04,1487.32,10.88]
[null,44512.05,51743.28,3574.52,16]
[null,51743.29,61950.84,4731.5200000000004,17.920000000000002]
[null,61950.85,124945.96,6560.72,21.36]
[null,124945.97,196932,20016.48,23.52]
[null,196932.01,375975.6,36947.56,30]
[null,375975.61,501300.8,90660.68,32]
[null,501300.81,1503902.44,130764.72,34]
[null,1503902.45,"En adelante",471649.28000000003,35]
[]
[null,"Tarifa del mes de mayo de 2025, para efectuar los pagos provisionales mensuales a que se refiere el artículo 106 de la Ley del ISR, aplicable a los ingresos que perciban los contribuyentes a que se refiere el Título IV, Capítulo II, Sección I de la Ley del ISR."]
[null,"Límite inferior","Límite superior","Cuota fija","Por ciento para aplicarse sobre el excedente del límite inferior"]
[null,"$","$","$","%"]
[null,0.01,3730.2,0,1.92]
[null,3730.21,31660.25,71.599999999999994,6.4]
[null,31660.26,55640.05,1859.15,10.88]
[null,55640.06,64679.1,4468.1499999999996,16]
[null,64679.11,77438.55,5914.4,17.920000000000002]
[null,77438.559999999998,156182.45000000001,8200.9,21.36]
[null,156182.46,246165,25020.6,23.52]
[null,246165.01,469969.5,46184.45,30]
[null,469969.51,626626,113325.85,32]
[null,626626.01,1879878.05,163455.9,34]
[null,1879878.06,"En adelante",589561.59999999998,35]
[]
[null,"Tarifa del mes de junio de 2025, para efectuar los pagos provisionales mensuales a que se refiere el artículo 106 de la Ley del ISR, aplicable a los ingresos que perciban los contribuyentes a que se refiere el Título IV, Capítulo II, Sección I de la Ley del ISR."]
[null,"Límite inferior","Límite superior","Cuota fija","Por ciento para aplicarse sobre el excedente del límite inferior"]
[null,"$","$","$","%"]
[null,0.01,4476.24,0,1.92]
[null,4476.25,37992.300000000003,85.92,6.4]
[null,37992.31,66768.06,2230.98,10.88]
[null,66768.070000000007,77614.92,5361.78,16]
[null,77614.929999999993,92926.26,7097.28,17.920000000000002]
[null,92926.27,187418.94,9841.08,21.36]
[null,187418.95,295398,30024.720000000001,23.52]
[null,295398.01,563963.4,55421.34,30]
[null,563963.41,751951.2,135991.01999999999,32]
[null,751951.21,2255853.66,196147.08,34]
[null,2255853.67,"En adelante",707473.92000000004,35]
[]
[null,"Tarifa del mes de julio de 2025, para efectuar los pagos provisionales mensuales a que se refiere el artículo 106 de la Ley del ISR, aplicable a los ingresos que perciban los contribuyentes a que se refiere el Título IV, Capítulo II, Sección I de la Ley del ISR."]
[null,"Límite inferior","Límite superior","Cuota fija","Por ciento para aplicarse sobre el excedente del límite inferior"]
[null,"$","$","$","%"]
[null,0.01,5222.28,0,1.92]
[null,5222.29,44324.35,100.24,6.4]
[null,44324.36,77896.070000000007,2602.81,10.88]
[null,77896.08,90550.74,6255.41,16]
[null,90550.75,108413.97,8280.16,17.920000000000002]
[null,108413.98,218655.43,11481.26,21.36]
[null,218655.44,344631,35028.839999999997,23.52]
[null,344631.01,657957.30000000005,64658.23,30]
[null,657957.31000000006,877276.4,158656.19,32]
[null,877276.41,2631829.27,228838.26,34]
[null,2631829.2799999998,"En adelante",825386.24,35]
[]
[null,"Tarifa del mes de agosto de 2025, para efectuar los pagos provisionales mensuales a que se refiere el artículo 106 de la Ley del ISR, aplicable a los ingresos que perciban los contribuyentes a que se refiere el Título IV, Capítulo II, Sección I de la Ley del ISR."]
[null,"Límite inferior","Límite superior","Cuota fija","Por ciento para aplicarse sobre el excedente del límite inferior"]
[null,"$","$","$","%"]
[null,0.01,5968.32,0,1.92]
[null,5968.33,50656.4,114.56,6.4]
[null,50656.41,89024.08,2974.64,10.88]
[null,89024.09,103486.56,7149.04,16]
[null,103486.57,123901.68,9463.0400000000009,17.920000000000002]
[null,123901.69,249891.92,13121.44,21.36]
[null,249891.93,393864,40032.959999999999,23.52]
[null,393864.01,751951.2,73895.12,30]
[null,751951.21,1002601.6,181321.36,32]
[null,1002601.61,3007804.88,261529.44,34]
[null,3007804.89,"En adelante",943298.56000000006,35]
[]
[null,"Tarifa del mes de septiembre de 2025, para efectuar los pagos provisionales mensuales a que se refiere el artículo 106 de la Ley del ISR, aplicable a los ingresos que perciban los contribuyentes a que se refiere el Título IV, Capítulo II, Sección I de la Ley del ISR."]
[null,"Límite inferior","Límite superior","Cuota fija","Por ciento para aplicarse sobre el excedente del límite inferior"]
[null,"$","$","$","%"]
[null,0.01,6714.36,0,1.92]
[null,6714.37,56988.45,128.88,6.4]
[null,56988.46,100152.09,3346.47,10.88]
[null,100152.1,116422.38,8042.67,16]
[null,116422.39,139389.39000000001,10645.92,17.920000000000002]
[null,139389.4,281128.40999999997,14761.62,21.36]
[null,281128.42,443097,45037.08,23.52]
[null,443097.01,845945.1,83132.009999999995,30]
[null,845945.11,1127926.8,203986.53,32]
[null,1127926.81,3383780.49,294220.62,34]
[null,3383780.5,"En adelante",1061210.8799999999,35]
[]
[null,"Tarifa del mes de octubre de 2025, para efectuar los pagos provisionales mensuales a que se refiere el artículo 106 de la Ley del ISR, aplicable a los ingresos que perciban los contribuyentes a que se refiere el Título IV, Capítulo II, Sección I de la Ley del ISR."]
[null,"Límite inferior","Límite superior","Cuota fija","Por ciento para aplicarse sobre el excedente del límite inferior"]
[null,"$","$","$","%"]
[null,0.01,7460.4,0,1.92]
[null,7460.41,63320.5,143.19999999999999,6.4]
[null,63320.51,111280.1,3718.3,10.88]
[null,111280.11,129358.2,8936.2999999999993,16]
[null,129358.21,154877.1,11828.8,17.920000000000002]
[null,154877.10999999999,312364.90000000002,16401.8,21.36]
[null,312364.90999999997,492330,50041.2,23.52]
[null,492330.01,939939,92368.9,30]
[null,939939.01,1253252,226651.7,32]
[null,1253252.01,3759756.1,326911.8,34]
[null,3759756.11,"En adelante",1179123.2,35]
[]
[null,"Tarifa del mes de noviembre de 2025, para efectuar los pagos provisionales mensuales a que se refiere el artículo 106 de la Ley del ISR, aplicable a los ingresos que perciban los contribuyentes a que se refiere el Título IV, Capítulo II, Sección I de la Ley del ISR."]
[null,"Límite inferior","Límite superior","Cuota fija","Por ciento para aplicarse sobre el excedente del límite inferior"]
[null,"$","$","$","%"]
[null,0.01,8206.44,0,1.92]
[null,8206.4500000000007,69652.55,157.52000000000001,6.4]
[null,69652.56,122408.11,4090.13,10.88]
[null,122408.12,142294.01999999999,9829.93,16]
[null,142294.03,170364.81,13011.68,17.920000000000002]
[null,170364.82,343601.39,18041.98,21.36]
[null,343601.4,541563,55045.32,23.52]
[null,541563.01,1033932.9,101605.79,30]
[null,1033932.91,1378577.2,249316.87,32]
[null,1378577.21,4135731.71,359602.98,34]
[null,4135731.72,"En adelante",1297035.52,35]
[]
[null,"Tarifa del mes de diciembre de 2025, para efectuar los pagos provisionales mensuales a que se refiere el artículo 106 de la Ley del ISR, aplicable a los ingresos que perciban los contribuyentes a que se refiere el Título IV, Capítulo II, Sección I de la Ley del ISR."]
[null,"Límite inferior","Límite superior","Cuota fija","Por ciento para aplicarse sobre el excedente del límite inferior"]
[null,"$","$","$","%"]
[null,0.01,8952.49,0,1.92]
[null,8952.5,75984.55,171.88,6.4]
[null,75984.56,133536.07,4461.9399999999996,10.88]
[null,133536.07999999999,155229.79999999999,10723.55,16]
[null,155229.81,185852.57,14194.54,17.920000000000002]
[null,185852.58,374837.88,19682.13,21.36]
[null,374837.89,590795.99,60049.4,23.52]
[null,590796,1127926.8400000001,110842.74,30]
[null,1127926.8500000001,1503902.46,271981.99,32]
[null,1503902.47,4511707.37,392294.17,34]
[null,4511707.38,"En adelante",1414947.85,35]
[]
[null,"Tarifa para el cálculo del impuesto correspondiente al ejercicio de 2025 a que se refieren los artículos 97 y 152 de la Ley del ISR, así como la regla 3.17.1."]
[null,"Límite inferior","Límite superior","Cuota fija","Por ciento para aplicarse sobre el excedente del límite inferior"]
[null,"$","$","$","%"]
[null,0.01,8952.49,0,1.92]
[null,8952.5,75984.55,171.88,6.4]
[null,75984.56,133536.07,4461.9399999999996,10.88]
[null,133536.07999999999,155229.79999999999,10723.55,16]
[null,155229.81,185852.57,14194.54,17.920000000000002]
[null,185852.58,374837.88,19682.13,21.36]
[null,374837.89,590795.99,60049.4,23.52]
[null,590796,1127926.8400000001,110842.74,30]
[null,1127926.8500000001,1503902.46,271981.99,32]
[null,1503902.47,4511707.37,392294.17,34]
[null,4511707.38,"En adelante",1414947.85,35]
[]
[]
[]
[]
[]
[]
[]
[]
[]
[]
[]
[]
[]
[]
[]
[]
[]
[]
[]
[]
[]
[]
[]
[]
[]
[]
[]
[]
[]
[]
[]
[]
[]
[]
[]
[]
[]
[]
[]
[]
[]
[]
[]
[]
[]
[]
[]
[]
[]
[]
[]
[]
[]
[]
[]
[]
[]
[]
[]
[]
[]
[]
[]
[]
[]
[]
[]
[]
[]
[]
[]
[]
[]
[]
[]
[]
[]
[]
[]
[]
[]
[]
[]
[]
[]
[]
[]
[]
[]
[]
[]
[]
[]
[null,"Enero",1]
[null,"Febrero",2]
[null,"Marzo",3]
[null,"Abril",4]
[null,"Mayo",5]
[null,"Junio",6]
[null,"Julio",7]
[null,"Agosto",8]
[null,"Septiembre",9]
[null,"Octubre",10]
[null,"Noviembre",11]
[null,"Diciembre",12]
[]
[]
[]
[]
[]
[]
[]
[null,"Servicio de transporte terrestre de personas y entrega de bienes",2.1000000000000001E-2]
[null,"Servicio de hospedaje",0.04]
[null,"Enajenación de bienes y/o prestación de servicios",0.01]